Organisation Name,Effective Date,Purch Date,Directorate,Expense Area,Beneficiary,Net amount,      Tax,     Gross,Long Text,MCC Description
Buckinghamshire Council ,31.12.2023,31.12.2023,Children's Services,Education & Childrens Services - CS Dir,AMZNMktplace,16.18,0,16.18,Awaiting Coding,Miscellaneous retail
Buckinghamshire Council ,31.12.2023,31.12.2023,Children's Services,Education & Childrens Services - CS Dir,AMZNMktplace,33.97,0,33.97,Awaiting Coding,Miscellaneous retail
Buckinghamshire Council ,31.12.2023,31.12.2023,Communities,Housing & Homelessness & Regulatory Comm,AMZNMKTPLACE,23.98,0,23.98,Maintenance of Grounds,Miscellaneous retail
Buckinghamshire Council ,31.12.2023,31.12.2023,Deputy Chief Executive,Leader - DCE,FACEBK S2CPYWFPN2,717.36,0,717.36,Advertising,Advertising services
Buckinghamshire Council ,31.12.2023,31.12.2023,Resources,AH&R - Res Dir,FACEBK *FXCN8VB742,11.08,0,11.08,Permanent Recruitment Costs,Advertising services
Buckinghamshire Council ,31.12.2023,31.12.2023,Communities,Transport - Communities Dir,eBay O*19-10986-60428,7.99,0,7.99,Awaiting Coding,Department stores
Buckinghamshire Council ,31.12.2023,30.12.2023,Deputy Chief Executive,Communities - DCE,AO RETAIL LIMITED,-10,0,-10,Other Personal Needs,Household appliance stores
Buckinghamshire Council ,31.12.2023,30.12.2023,Children's Services,Education & Childrens Services - CS Dir,PREMIER INN,361.96,0,361.96,Sec 17: Transport,Premier Inn
Buckinghamshire Council ,31.12.2023,30.12.2023,Children's Services,Education & Childrens Services - CS Dir,AMAZON.CO.UK,69.75,0,69.75,"Books, Records, Films & Oth Publications",Direct sales companies
Buckinghamshire Council ,31.12.2023,30.12.2023,Communities,Transport - Communities Dir,eBay O*27-10978-27237,11.38,0,11.38,Awaiting Coding,Department stores
Buckinghamshire Council ,31.12.2023,30.12.2023,Communities,Transport - Communities Dir,eBay O*03-10994-97486,2.25,0,2.25,Awaiting Coding,Department stores
Buckinghamshire Council ,31.12.2023,30.12.2023,Communities,Transport - Communities Dir,eBay O*27-10978-27237,-11.38,0,-11.38,Awaiting Coding,Department stores
Buckinghamshire Council ,31.12.2023,30.12.2023,Communities,Transport - Communities Dir,eBay O*03-10994-97486,-2.25,0,-2.25,Awaiting Coding,Department stores
Buckinghamshire Council ,31.12.2023,29.12.2023,Children's Services,Education & Childrens Services - CS Dir,AMZNMKTPLACE,545.09,0,545.09,"Books, Records, Films & Oth Publications",Miscellaneous retail
Buckinghamshire Council ,31.12.2023,29.12.2023,Children's Services,Education & Childrens Services - CS Dir,AMZNMKTPLACE,52.98,0,52.98,Support for Foster Carers,Miscellaneous retail
Buckinghamshire Council ,31.12.2023,29.12.2023,"Planning, Growth & Sustainability",Housing & Homelessness & Regulatory PGS,TRAVELODGE GB0000,245.77,0,245.77,"Courses, Conference and Seminar Fees",Travelodge
Buckinghamshire Council ,31.12.2023,29.12.2023,Resources,AH&R - Res Dir,DAEWOOELECTRICALS.COM,139.99,0,139.99,Awaiting Coding,Household appliance stores
Buckinghamshire Council ,31.12.2023,29.12.2023,Resources,AH&R - Res Dir,A1 Taxi Service,60,0,60,Staff Travelling Expenses,Taxicabs & limousines
Buckinghamshire Council ,31.12.2023,29.12.2023,Resources,AH&R - Res Dir,Dunelm SoftFurnishings,89.95,0,89.95,Awaiting Coding,Furniture & home furnishing
Buckinghamshire Council ,31.12.2023,29.12.2023,Resources,AH&R - Res Dir,AMZNMktplace,135.99,0,135.99,Awaiting Coding,Miscellaneous retail
Buckinghamshire Council ,31.12.2023,29.12.2023,Deputy Chief Executive,Communities - DCE,AO RETAIL LIMITED,945,0,945,Awaiting Coding,Household appliance stores
Buckinghamshire Council ,31.12.2023,29.12.2023,Deputy Chief Executive,Communities - DCE,AO RETAIL LIMITED,264,0,264,Awaiting Coding,Household appliance stores
Buckinghamshire Council ,31.12.2023,29.12.2023,Deputy Chief Executive,Communities - DCE,PAYPAL,125.95,0,125.95,Awaiting Coding,Variety stores
Buckinghamshire Council ,31.12.2023,29.12.2023,Deputy Chief Executive,Communities - DCE,PAYPAL,216,0,216,Awaiting Coding,Variety stores
Buckinghamshire Council ,31.12.2023,29.12.2023,Deputy Chief Executive,Communities - DCE,WWW.ARGOS.CO.UK,188.29,37.66,225.95,Other Personal Needs,Department stores
Buckinghamshire Council ,31.12.2023,29.12.2023,Deputy Chief Executive,Communities - DCE,AO RETAIL LIMITED,211.66,42.34,254,Other Personal Needs,Household appliance stores
Buckinghamshire Council ,31.12.2023,29.12.2023,Deputy Chief Executive,Communities - DCE,AO RETAIL LIMITED,255.83,51.17,307,Other Personal Needs,Household appliance stores
Buckinghamshire Council ,31.12.2023,29.12.2023,Communities,Housing & Homelessness & Regulatory Comm,MFG AYLESBURY,32.13,0,32.13,Maintenance of Grounds,Service stations
Buckinghamshire Council ,31.12.2023,29.12.2023,Children's Services,Education & Childrens Services - CS Dir,AMZNMKTPLACE,396.25,0,396.25,"Books, Records, Films & Oth Publications",Miscellaneous retail
Buckinghamshire Council ,31.12.2023,29.12.2023,Resources,AH&R - Res Dir,LINKEDIN ADS 9751664184,131.76,0,131.76,Permanent Recruitment Costs,Advertising services
Buckinghamshire Council ,31.12.2023,29.12.2023,Children's Services,Education & Childrens Services - CS Dir,HOLIDAY INN HIGH W,250.65,0,250.65,"Courses, Conference and Seminar Fees","Hotels, motels & resorts"
Buckinghamshire Council ,31.12.2023,29.12.2023,Children's Services,Education & Childrens Services - CS Dir,MYTRIPBUS* REDLINE BUS,8,0,8,Awaiting Coding,
Buckinghamshire Council ,31.12.2023,28.12.2023,Resources,AH&R - Res Dir,AMZNMktplace,23.98,0,23.98,Awaiting Coding,Miscellaneous retail
Buckinghamshire Council ,31.12.2023,28.12.2023,Children's Services,Education & Childrens Services - CS Dir,AMZNMktplace,11.5,0,11.5,Awaiting Coding,Miscellaneous retail
Buckinghamshire Council ,31.12.2023,28.12.2023,Deputy Chief Executive,Communities - DCE,WWW.ARGOS.CO.UK,264.95,52.99,317.94,Other Personal Needs,Department stores
Buckinghamshire Council ,31.12.2023,28.12.2023,Deputy Chief Executive,Communities - DCE,WWW.ARGOS.CO.UK,0.01,0,0.01,Other Personal Needs,Department stores
Buckinghamshire Council ,31.12.2023,28.12.2023,Deputy Chief Executive,Communities - DCE,WWW.ARGOS.CO.UK,90.79,18.16,108.95,Other Personal Needs,Department stores
Buckinghamshire Council ,31.12.2023,28.12.2023,Deputy Chief Executive,Communities - DCE,AO RETAIL LIMITED,506.66,101.34,608,Other Personal Needs,Household appliance stores
Buckinghamshire Council ,31.12.2023,28.12.2023,Deputy Chief Executive,Communities - DCE,AO RETAIL LIMITED,618.33,123.67,742,Other Personal Needs,Household appliance stores
Buckinghamshire Council ,31.12.2023,28.12.2023,Communities,Culture & Leisure - Communities Dir,AO RETAIL LIMITED,184,0,184,Awaiting Coding,Household appliance stores
Buckinghamshire Council ,31.12.2023,28.12.2023,Communities,Transport - Communities Dir,B & Q 1305,18,0,18,Materials,Home supply warehouse stores
Buckinghamshire Council ,31.12.2023,28.12.2023,"Planning, Growth & Sustainability",AH&R - PGS Dir,ICELAND,5.8,0,5.8,General Provisions (Food),Grocery stores
Buckinghamshire Council ,31.12.2023,28.12.2023,Children's Services,Education & Childrens Services - CS Dir,WWW.MDX.AC.UK,"4,841.33",0,"4,841.33",Leaving Care - Higher Education Supp,Colleges & universities
Buckinghamshire Council ,31.12.2023,28.12.2023,"Planning, Growth & Sustainability",Planning & Regeneration - PGS,WH SMITH HIGH WYCOMBE,31.59,0,31.59,Stationery & Office Supplies,Newspapers / newsagents
Buckinghamshire Council ,31.12.2023,28.12.2023,"Planning, Growth & Sustainability",Housing & Homelessness & Regulatory PGS,PREMIER INN,412,0,412,Bed & Breakfast,Premier Inn
Buckinghamshire Council ,31.12.2023,28.12.2023,Children's Services,Education & Childrens Services - CS Dir,LIDL GB  HIGH WYCOMBE,13.99,0,13.99,Miscellaneous (Other)  Expenses,Grocery stores
Buckinghamshire Council ,31.12.2023,28.12.2023,Children's Services,Education & Childrens Services - CS Dir,WIZZ AIR    SDYMYL,410.05,0,410.05,Sec 20/31: Supp for Contact,
Buckinghamshire Council ,31.12.2023,28.12.2023,Communities,Transport - Communities Dir,POST OFFICE COUNTER,7.35,0,7.35,General Postage,Postal services
Buckinghamshire Council ,31.12.2023,27.12.2023,Deputy Chief Executive,AH&R- DCE Dir,PAYPAL,500,0,500,Awaiting Coding,Variety stores
Buckinghamshire Council ,31.12.2023,27.12.2023,Deputy Chief Executive,AH&R- DCE Dir,PAYPAL,279.95,0,279.95,Awaiting Coding,Variety stores
Buckinghamshire Council ,31.12.2023,27.12.2023,"Planning, Growth & Sustainability",Housing & Homelessness & Regulatory PGS,HPI INSTANT INK UK,9.99,0,9.99,Furniture,Electronics shops
Buckinghamshire Council ,31.12.2023,27.12.2023,Adults and Health,Health & Wellbeing - Adults & Health Dir,ASDA SUPERSTORE,5.8,0,5.8,General Provisions (Food),Grocery stores
Buckinghamshire Council ,31.12.2023,27.12.2023,Deputy Chief Executive,Communities - DCE,TINGEWICK FUELS,9.8,0.49,10.29,Other Personal Needs,Fuel dealers
Buckinghamshire Council ,31.12.2023,27.12.2023,Deputy Chief Executive,Communities - DCE,TINGEWICK FUELS,87.71,0,87.71,Other Personal Needs,Fuel dealers
Buckinghamshire Council ,31.12.2023,27.12.2023,Deputy Chief Executive,Communities - DCE,AO RETAIL LIMITED,203.33,40.67,244,Other Personal Needs,Household appliance stores
Buckinghamshire Council ,31.12.2023,27.12.2023,Deputy Chief Executive,Communities - DCE,AO RETAIL LIMITED,544.16,108.84,653,Other Personal Needs,Household appliance stores
Buckinghamshire Council ,31.12.2023,27.12.2023,Deputy Chief Executive,Communities - DCE,AO RETAIL LIMITED,734.99,147.01,882,Other Personal Needs,Household appliance stores
Buckinghamshire Council ,31.12.2023,27.12.2023,Deputy Chief Executive,Communities - DCE,AO RETAIL LIMITED,357.5,71.5,429,Other Personal Needs,Household appliance stores
Buckinghamshire Council ,31.12.2023,27.12.2023,Deputy Chief Executive,Communities - DCE,AO RETAIL LIMITED,747.49,149.51,897,Other Personal Needs,Household appliance stores
Buckinghamshire Council ,31.12.2023,27.12.2023,Deputy Chief Executive,Communities - DCE,WWW.ARGOS.CO.UK,384.95,76.99,461.94,Other Personal Needs,Department stores
Buckinghamshire Council ,31.12.2023,27.12.2023,Deputy Chief Executive,Communities - DCE,WWW.ARGOS.CO.UK,0.01,0,0.01,Other Personal Needs,Department stores
Buckinghamshire Council ,31.12.2023,27.12.2023,Children's Services,Education & Childrens Services - CS Dir,AMZNMktplace,37.98,0,37.98,Awaiting Coding,Miscellaneous retail
Buckinghamshire Council ,31.12.2023,27.12.2023,Children's Services,Education & Childrens Services - CS Dir,AMZNMktplace,33.34,0,33.34,Awaiting Coding,Miscellaneous retail
Buckinghamshire Council ,31.12.2023,27.12.2023,Children's Services,Education & Childrens Services - CS Dir,Amazon.co.uk,21,0,21,Stationery & Office Supplies,Direct sales companies
Buckinghamshire Council ,31.12.2023,27.12.2023,Children's Services,Education & Childrens Services - CS Dir,AMZNMktplace,6.99,0,6.99,Awaiting Coding,Miscellaneous retail
Buckinghamshire Council ,31.12.2023,27.12.2023,Children's Services,Education & Childrens Services - CS Dir,AMZNMktplace,28.47,0,28.47,Awaiting Coding,Miscellaneous retail
Buckinghamshire Council ,31.12.2023,27.12.2023,"Planning, Growth & Sustainability",Planning & Regeneration - PGS,HSE - BSR,336,0,336,Reg & Exam Fees for External Courses,Government services
Buckinghamshire Council ,31.12.2023,27.12.2023,Children's Services,Education & Childrens Services - CS Dir,TWINKL,101.88,0,101.88,Awaiting Coding,Schools
Buckinghamshire Council ,31.12.2023,27.12.2023,Adults and Health,Health & Wellbeing - Adults & Health Dir,SUMUP  *RISBOROUGH CAR,144,0,144,Staff Travelling Expenses,Taxicabs & limousines
Buckinghamshire Council ,31.12.2023,27.12.2023,Children's Services,Education & Childrens Services - CS Dir,TESCO STORES 2041,26.19,0,26.19,General Provisions (Food),Grocery stores
Buckinghamshire Council ,31.12.2023,27.12.2023,Adults and Health,Health & Wellbeing - Adults & Health Dir,BOOKER LTD - 38534944,148.16,0,148.16,General Provisions (Food),Grocery stores
Buckinghamshire Council ,31.12.2023,27.12.2023,Communities,Culture & Leisure - Communities Dir,AMZNMKTPLACE,168.18,0,168.18,Events Expenditure,Miscellaneous retail
Buckinghamshire Council ,31.12.2023,27.12.2023,Children's Services,Education & Childrens Services - CS Dir,AMAZON PRIME,8.99,0,8.99,Stationery & Office Supplies,Continuous subscriptions
Buckinghamshire Council ,31.12.2023,27.12.2023,Adults and Health,Health & Wellbeing - Adults & Health Dir,ASDA GROCERIES ONLINE,77.9,0,77.9,General Provisions (Food),Grocery stores
Buckinghamshire Council ,31.12.2023,27.12.2023,Adults and Health,Health & Wellbeing - Adults & Health Dir,ASDA GROCERIES ONLINE,-0.82,0,-0.82,General Provisions (Food),Grocery stores
Buckinghamshire Council ,31.12.2023,26.12.2023,Communities,Housing & Homelessness & Regulatory Comm,AMZNMKTPLACE,77.92,0,77.92,Administrative Equipment & Tools,Miscellaneous retail
Buckinghamshire Council ,31.12.2023,26.12.2023,Communities,Transport - Communities Dir,AMZNMKTPLACE,28.98,0,28.98,Area Teams and Materials,Miscellaneous retail
Buckinghamshire Council ,31.12.2023,26.12.2023,Resources,AH&R - Res Dir,LINKEDIN ADS 9742733014,104.94,0,104.94,Permanent Recruitment Costs,Advertising services
Buckinghamshire Council ,31.12.2023,26.12.2023,Communities,Culture & Leisure - Communities Dir,AMZNMKTPLACE,79.99,0,79.99,Events Expenditure,Miscellaneous retail
Buckinghamshire Council ,31.12.2023,25.12.2023,Children's Services,Education & Childrens Services - CS Dir,amazon.co.uk,3.99,0,3.99,Awaiting Coding,
Buckinghamshire Council ,31.12.2023,25.12.2023,Children's Services,Education & Childrens Services - CS Dir,TRAINLINE,-3.4,0,-3.4,Leaving Care - Transport,Passenger railways
Buckinghamshire Council ,31.12.2023,24.12.2023,"Planning, Growth & Sustainability",Housing & Homelessness & Regulatory PGS,TRAVELODGE GB0000,351.85,0,351.85,Homelessness,Travelodge
Buckinghamshire Council ,31.12.2023,24.12.2023,"Planning, Growth & Sustainability",Housing & Homelessness & Regulatory PGS,THE BELL AYLESBURY,129,0,129,Homelessness,"Hotels, motels & resorts"
Buckinghamshire Council ,31.12.2023,24.12.2023,"Planning, Growth & Sustainability",AH&R - PGS Dir,AMZNMKTPLACE,-0.18,0,-0.18,Purchase.of Refreshments and Food,Miscellaneous retail
Buckinghamshire Council ,31.12.2023,24.12.2023,Resources,AH&R - Res Dir,ACCESS HEMEL HEMPSTEAD,157,0,157,Equipment (including storage),Warehousing
Buckinghamshire Council ,31.12.2023,23.12.2023,Deputy Chief Executive,Leader - DCE,MILTON KEYNES ONSTR (E),2.2,0,2.2,Staff Travelling Expenses,Car parking & garages
Buckinghamshire Council ,31.12.2023,23.12.2023,Communities,Housing & Homelessness & Regulatory Comm,AMZNMKTPLACE,10.99,0,10.99,Miscellaneous (Other)  Expenses,Miscellaneous retail
Buckinghamshire Council ,31.12.2023,23.12.2023,Children's Services,Education & Childrens Services - CS Dir,WM MORRISONS STORE,8.18,0,8.18,Awaiting Coding,Grocery stores
Buckinghamshire Council ,31.12.2023,23.12.2023,Children's Services,Education & Childrens Services - CS Dir,ALDI 110 775,25.68,0,25.68,Awaiting Coding,Grocery stores
Buckinghamshire Council ,31.12.2023,23.12.2023,Deputy Chief Executive,Leader - DCE,TIMES NEWSPAPERS LTD,26,0,26,"Books, Records, Films & Oth Publications","Books, periodicals & newspapers"
Buckinghamshire Council ,31.12.2023,23.12.2023,Deputy Chief Executive,Leader - DCE,TELEGRAPH SUBSCRIPTION,14.99,0,14.99,"Books, Records, Films & Oth Publications",Continuous subscriptions
Buckinghamshire Council ,31.12.2023,23.12.2023,Resources,AH&R - Res Dir,LINKEDIN ADS 9736871834,117.55,0,117.55,Permanent Recruitment Costs,Advertising services
Buckinghamshire Council ,31.12.2023,23.12.2023,Resources,AH&R - Res Dir,PADDLE.NET* TEAMGANTT,57.55,0,57.55,Subsistence,
Buckinghamshire Council ,31.12.2023,22.12.2023,Children's Services,Education & Childrens Services - CS Dir,SUMUP  *CABS4U,77.5,0,77.5,Sec 20/31: Transport,Taxicabs & limousines
Buckinghamshire Council ,31.12.2023,22.12.2023,"Planning, Growth & Sustainability",Housing & Homelessness & Regulatory PGS,AMZNMKTPLACE,154.98,0,154.98,Miscellaneous (Other)  Expenses,Miscellaneous retail
Buckinghamshire Council ,31.12.2023,22.12.2023,"Planning, Growth & Sustainability",Housing & Homelessness & Regulatory PGS,AMZNMKTPLACE,217.07,0,217.07,Miscellaneous (Other)  Expenses,Miscellaneous retail
Buckinghamshire Council ,31.12.2023,22.12.2023,"Planning, Growth & Sustainability",Housing & Homelessness & Regulatory PGS,LAND REGISTRY ECOM CCC,3,0,3,Homelessness,Government services
Buckinghamshire Council ,31.12.2023,22.12.2023,Children's Services,Education & Childrens Services - CS Dir,POST OFFICE COUNTER,6.25,0,6.25,General Postage,Postal services
Buckinghamshire Council ,31.12.2023,22.12.2023,Deputy Chief Executive,Communities - DCE,FLOGAS BRITAIN LIMITED,64.16,0,64.16,Other Personal Needs,Fuel dealers
Buckinghamshire Council ,31.12.2023,22.12.2023,Deputy Chief Executive,Communities - DCE,OAK FARM LEISURE,100,5,105,Other Personal Needs,Tents and camping shops
Buckinghamshire Council ,31.12.2023,22.12.2023,Deputy Chief Executive,Communities - DCE,OAK FARM LEISURE,10,0,10,Other Personal Needs,Tents and camping shops
Buckinghamshire Council ,31.12.2023,22.12.2023,Deputy Chief Executive,Communities - DCE,AO RETAIL LIMITED,806.66,161.34,968,Other Personal Needs,Household appliance stores
Buckinghamshire Council ,31.12.2023,22.12.2023,Deputy Chief Executive,Communities - DCE,AO RETAIL LIMITED,598.33,119.67,718,Other Personal Needs,Household appliance stores
Buckinghamshire Council ,31.12.2023,22.12.2023,Deputy Chief Executive,Communities - DCE,AO RETAIL LIMITED,340.83,68.17,409,Other Personal Needs,Household appliance stores
Buckinghamshire Council ,31.12.2023,22.12.2023,Deputy Chief Executive,Communities - DCE,WWW.ARGOS.CO.UK,872.45,174.49,"1,046.94",Other Personal Needs,Department stores
Buckinghamshire Council ,31.12.2023,22.12.2023,Deputy Chief Executive,Communities - DCE,WWW.ARGOS.CO.UK,0.01,0,0.01,Other Personal Needs,Department stores
Buckinghamshire Council ,31.12.2023,22.12.2023,Deputy Chief Executive,Communities - DCE,WWW.ARGOS.CO.UK,595.95,0,595.95,Other Personal Needs,Department stores
Buckinghamshire Council ,31.12.2023,22.12.2023,Deputy Chief Executive,Communities - DCE,WWW.ARGOS.CO.UK,24.61,0,24.61,Other Personal Needs,Department stores
Buckinghamshire Council ,31.12.2023,22.12.2023,Children's Services,Education & Childrens Services - CS Dir,WF *UK4203526534,244.93,0,244.93,Leaving Care - Grants for Care Leavers,Furniture & home furnishing
Buckinghamshire Council ,31.12.2023,22.12.2023,Children's Services,Education & Childrens Services - CS Dir,FURNITUREBOX,159.99,0,159.99,Leaving Care - Grants for Care Leavers,Furniture & home furnishing
Buckinghamshire Council ,31.12.2023,22.12.2023,Children's Services,Education & Childrens Services - CS Dir,ASDA GEORGE COM LEEDS,39,0,39,Leaving Care - Grants for Care Leavers,Grocery stores
Buckinghamshire Council ,31.12.2023,22.12.2023,Children's Services,Education & Childrens Services - CS Dir,SUMUP  *CABS4U,11,0,11,Sec 20/31: Transport,Taxicabs & limousines
Buckinghamshire Council ,31.12.2023,22.12.2023,Children's Services,Education & Childrens Services - CS Dir,FENCABS,8,0,8,Sec 20/31: Financial Assistance One Off,Taxicabs & limousines
Buckinghamshire Council ,31.12.2023,22.12.2023,Children's Services,Education & Childrens Services - CS Dir,CURRYS BUSINESS,290.8,58.16,348.96,Computer Consumables,Computer software stores
Buckinghamshire Council ,31.12.2023,22.12.2023,Children's Services,Education & Childrens Services - CS Dir,CURRYS BUSINESS,0.03,0,0.03,Computer Consumables,Computer software stores
Buckinghamshire Council ,31.12.2023,22.12.2023,Children's Services,Education & Childrens Services - CS Dir,CURRYS BUSINESS,"1,441.45",288.29,"1,729.74",Computer Consumables,Computer software stores
Buckinghamshire Council ,31.12.2023,22.12.2023,Children's Services,Education & Childrens Services - CS Dir,CURRYS BUSINESS,0.02,0,0.02,Computer Consumables,Computer software stores
Buckinghamshire Council ,31.12.2023,22.12.2023,Children's Services,Education & Childrens Services - CS Dir,WWW.PRESCHOOL.ORG.UK,66,0,66,Training Materials,Charitable organisations
Buckinghamshire Council ,31.12.2023,22.12.2023,Communities,Transport - Communities Dir,THEWORKS,2.5,0,2.5,Materials,Discount stores
Buckinghamshire Council ,31.12.2023,22.12.2023,Communities,Transport - Communities Dir,THEWORKS,2.5,0,2.5,Materials,Discount stores
Buckinghamshire Council ,31.12.2023,22.12.2023,Communities,Transport - Communities Dir,THEWORKS,5,0,5,Materials,Discount stores
Buckinghamshire Council ,31.12.2023,22.12.2023,Communities,Culture & Leisure - Communities Dir,WWW.SCREWFIX.COM,70.97,0,70.97,"Workshop - Materials,Tools & Equipment",Timber & building supplies
Buckinghamshire Council ,31.12.2023,22.12.2023,Children's Services,Education & Childrens Services - CS Dir,BT BUSINESS BILL,99.42,0,99.42,Telephones,Phone services
Buckinghamshire Council ,31.12.2023,22.12.2023,Communities,Culture & Leisure - Communities Dir,TVLICENSING.CO.UK,159,0,159,Professional Services (non curriculum) - External,Consultants & public relation services
Buckinghamshire Council ,31.12.2023,22.12.2023,Children's Services,Education & Childrens Services - CS Dir,AMZNMKTPLACE,15.98,0,15.98,Educational Equipment,Miscellaneous retail
Buckinghamshire Council ,31.12.2023,22.12.2023,Adults and Health,Communities - Adults & Health,XLN TELECOM LTD,67.14,0,67.14,Telephones,Phone services
Buckinghamshire Council ,31.12.2023,22.12.2023,Children's Services,Education & Childrens Services - CS Dir,NEALES TAXIS LTD,120,0,120,Staff Travelling Expenses,Taxicabs & limousines
Buckinghamshire Council ,31.12.2023,22.12.2023,Communities,Climate Change & Environment - Community,PAYPAL,49.27,0,49.27,Advertising,Advertising services
Buckinghamshire Council ,31.12.2023,22.12.2023,Children's Services,Education & Childrens Services - CS Dir,AMZNMKTPLACE,11.62,0,11.62,Professional Services (non curriculum) - External,Miscellaneous retail
Buckinghamshire Council ,31.12.2023,22.12.2023,Children's Services,Education & Childrens Services - CS Dir,WH Smith Aylesbury,2.9,0,2.9,"Books, Records, Films & Oth Publications",Newspapers / newsagents
Buckinghamshire Council ,31.12.2023,22.12.2023,Resources,AH&R - Res Dir,TROPHYSTORE.CO.UK LIMITED,-409.43,0,-409.43,Events Expenditure,"Precious stones, metals & jewellery"
Buckinghamshire Council ,31.12.2023,22.12.2023,Deputy Chief Executive,AH&R- DCE Dir,AMZNMKTPLACE,373.46,74.71,448.17,Members' Allowances - Travel & Subsist,Miscellaneous retail
Buckinghamshire Council ,31.12.2023,22.12.2023,Children's Services,Education & Childrens Services - CS Dir,ATGTICKETS.COM,91.8,0,91.8,Activities & General Recreation,Theatres and ticket agencies
Buckinghamshire Council ,31.12.2023,22.12.2023,Children's Services,Education & Childrens Services - CS Dir,WWW.TEAMTEACH.CO.UK,245.99,0,245.99,Health & Safety Supplies & Services,Schools
Buckinghamshire Council ,31.12.2023,22.12.2023,Children's Services,Education & Childrens Services - CS Dir,TRAVELODGE GB0000,41.8,0,41.8,Sec 20/31: Financial Assistance,Travelodge
Buckinghamshire Council ,31.12.2023,22.12.2023,Children's Services,Education & Childrens Services - CS Dir,TRAINLINE,24.39,0,24.39,Sec 20/31: Supp for Contact,Passenger railways
Buckinghamshire Council ,31.12.2023,22.12.2023,Communities,Transport - Communities Dir,ROBERT DYAS AMERSHAM,14.86,0,14.86,Materials,Hardware stores
Buckinghamshire Council ,31.12.2023,21.12.2023,"Planning, Growth & Sustainability",AH&R - PGS Dir,CLEAPSS,480,0,480,"Workshop - Materials,Tools & Equipment",Schools
Buckinghamshire Council ,31.12.2023,21.12.2023,"Planning, Growth & Sustainability",AH&R - PGS Dir,WWW.PLANNING.CO,642,0,642,Supply of consultancy services,Misc business services
Buckinghamshire Council ,31.12.2023,21.12.2023,"Planning, Growth & Sustainability",Planning & Regeneration - PGS,WWW.CIOB.ORG.UK,322,0,322,Professional Subscriptions re Employees,Membership organisations
Buckinghamshire Council ,31.12.2023,21.12.2023,Adults and Health,Health & Wellbeing - Adults & Health Dir,ASDA SUPERSTORE,4.8,0,4.8,General Provisions (Food),Grocery stores
Buckinghamshire Council ,31.12.2023,21.12.2023,"Planning, Growth & Sustainability",Climate Change & Environment - PGS,AMZNMKTPLACE,-239,0,-239,Advertising,Miscellaneous retail
Buckinghamshire Council ,31.12.2023,21.12.2023,Children's Services,Education & Childrens Services - CS Dir,AMZNMKTPLACE,18.98,0,18.98,Other Personal Needs,Miscellaneous retail
Buckinghamshire Council ,31.12.2023,21.12.2023,Children's Services,Education & Childrens Services - CS Dir,AMAZON.CO.UK,54.99,0,54.99,Other Personal Needs,Direct sales companies
Buckinghamshire Council ,31.12.2023,21.12.2023,Children's Services,Education & Childrens Services - CS Dir,AMAZON.CO.UK,37.36,0,37.36,Other Personal Needs,Direct sales companies
Buckinghamshire Council ,31.12.2023,21.12.2023,Deputy Chief Executive,Communities - DCE,AO RETAIL LIMITED,282.5,56.5,339,Other Personal Needs,Household appliance stores
Buckinghamshire Council ,31.12.2023,21.12.2023,Children's Services,Education & Childrens Services - CS Dir,CURRYS BUSINESS,960.95,192.19,"1,153.14",Computer Consumables,Computer software stores
Buckinghamshire Council ,31.12.2023,21.12.2023,Children's Services,Education & Childrens Services - CS Dir,CURRYS BUSINESS,0.03,0,0.03,Computer Consumables,Computer software stores
Buckinghamshire Council ,31.12.2023,21.12.2023,Deputy Chief Executive,Communities - DCE,AO RETAIL LIMITED,506.66,101.34,608,Other Personal Needs,Household appliance stores
Buckinghamshire Council ,31.12.2023,21.12.2023,Deputy Chief Executive,Communities - DCE,AO RETAIL LIMITED,303.3,60.66,363.96,Other Personal Needs,Household appliance stores
Buckinghamshire Council ,31.12.2023,21.12.2023,Deputy Chief Executive,Communities - DCE,AO RETAIL LIMITED,0.04,0,0.04,Other Personal Needs,Household appliance stores
Buckinghamshire Council ,31.12.2023,21.12.2023,Deputy Chief Executive,Communities - DCE,AO RETAIL LIMITED,132.5,26.5,159,Other Personal Needs,Household appliance stores
Buckinghamshire Council ,31.12.2023,21.12.2023,Children's Services,Education & Childrens Services - CS Dir,SUMUP  *CABS4U,48,0,48,Sec 20/31: Supp for Contact,Taxicabs & limousines
Buckinghamshire Council ,31.12.2023,21.12.2023,Children's Services,artnerships - Children's Services,BOX LIMITED,16.36,0,16.36,Stationery & Office Supplies,Electronics shops
Buckinghamshire Council ,31.12.2023,21.12.2023,Communities,Climate Change & Environment - Community,Helloprint United Kingdom,107.12,0,107.12,Photocopiers,Photocopy & reproduction services
Buckinghamshire Council ,31.12.2023,21.12.2023,Adults and Health,Health & Wellbeing - Adults & Health Dir,LYNKPAY* JET TAXIS,5,0,5,Staff Travelling Expenses,
Buckinghamshire Council ,31.12.2023,21.12.2023,Children's Services,Education & Childrens Services - CS Dir,ICELAND FOODS,-3,0,-3,Activities & General Recreation,Grocery stores
Buckinghamshire Council ,31.12.2023,21.12.2023,Children's Services,Education & Childrens Services - CS Dir,AMAZON PRIME,8.99,0,8.99,Professional Services (non curriculum) - External,Continuous subscriptions
Buckinghamshire Council ,31.12.2023,21.12.2023,Children's Services,Education & Childrens Services - CS Dir,TESCO STORES 2041,65.98,0,65.98,Awaiting Coding,Grocery stores
Buckinghamshire Council ,31.12.2023,21.12.2023,"Planning, Growth & Sustainability",AH&R - PGS Dir,THE WORKS,2.5,0.5,3,Stationery & Office Supplies,Discount stores
Buckinghamshire Council ,31.12.2023,21.12.2023,Adults and Health,Health & Wellbeing - Adults & Health Dir,BKG*HOTEL AT BOOKING.C,748.8,0,748.8,Staff Travelling Expenses,Travel agencies
Buckinghamshire Council ,31.12.2023,21.12.2023,Adults and Health,Health & Wellbeing - Adults & Health Dir,BKG*HOTEL AT BOOKING.C,719.9,0,719.9,Staff Travelling Expenses,Travel agencies
Buckinghamshire Council ,31.12.2023,21.12.2023,Children's Services,Education & Childrens Services - CS Dir,WWW.ARGOS.CO.UK,319,0,319,Leaving Care - Grants for Care Leavers,Department stores
Buckinghamshire Council ,31.12.2023,21.12.2023,Children's Services,Education & Childrens Services - CS Dir,CURRYS ONLINE,299,0,299,Leaving Care - Grants for Care Leavers,Electronics shops
Buckinghamshire Council ,31.12.2023,21.12.2023,Children's Services,Education & Childrens Services - CS Dir,TRAINLINE,111.69,0,111.69,Leaving Care - Transport,Passenger railways
Buckinghamshire Council ,31.12.2023,21.12.2023,Communities,ommunities - Trust Accounts,TESCO STORES 5461,20.3,0,20.3,Awaiting Coding,Grocery stores
Buckinghamshire Council ,31.12.2023,21.12.2023,Resources,AH&R - Res Dir,LINKEDIN ADS 9731645954,107.35,0,107.35,Permanent Recruitment Costs,Advertising services
Buckinghamshire Council ,31.12.2023,21.12.2023,Communities,Climate Change & Environment - Community,B & Q 1305,27.25,0,27.25,Equipment,Home supply warehouse stores
Buckinghamshire Council ,31.12.2023,21.12.2023,Children's Services,Education & Childrens Services - CS Dir,NEALES TAXIS LTD,360,72,432,Sec 20/31: Transport,Taxicabs & limousines
Buckinghamshire Council ,31.12.2023,20.12.2023,Children's Services,Education & Childrens Services - CS Dir,AMAZON.CO.UK,16.97,0,16.97,Printing & Stationery,Direct sales companies
Buckinghamshire Council ,31.12.2023,20.12.2023,"Planning, Growth & Sustainability",Partnership Climate Change & Envir - PGS,MOTEL ONE MANCHESTER ST P,490,0,490,"Courses, Conference and Seminar Fees","Hotels, motels & resorts"
Buckinghamshire Council ,31.12.2023,20.12.2023,Children's Services,Education & Childrens Services - CS Dir,LYNKPAY* 001 TAXIS,141.75,0,141.75,Sec 20/31: Transport,
Buckinghamshire Council ,31.12.2023,20.12.2023,Children's Services,Education & Childrens Services - CS Dir,LYNKPAY* 001 TAXIS,141.75,0,141.75,Sec 20/31: Transport,
Buckinghamshire Council ,31.12.2023,20.12.2023,Children's Services,Education & Childrens Services - CS Dir,LYNKPAY* 001 TAXIS,21,0,21,Sec 20/31: Transport,
Buckinghamshire Council ,31.12.2023,20.12.2023,Children's Services,Education & Childrens Services - CS Dir,LYNKPAY* 001 TAXIS,21,0,21,Sec 20/31: Transport,
Buckinghamshire Council ,31.12.2023,20.12.2023,Children's Services,Education & Childrens Services - CS Dir,LYNKPAY* 001 TAXIS,63,0,63,Sec 20/31: Transport,
Buckinghamshire Council ,31.12.2023,20.12.2023,Children's Services,Education & Childrens Services - CS Dir,LYNKPAY* 001 TAXIS,63,0,63,Sec 20/31: Transport,
Buckinghamshire Council ,31.12.2023,20.12.2023,Children's Services,Education & Childrens Services - CS Dir,LYNKPAY* 001 TAXIS,73.5,0,73.5,Sec 20/31: Transport,
Buckinghamshire Council ,31.12.2023,20.12.2023,Children's Services,Education & Childrens Services - CS Dir,LYNKPAY* 001 TAXIS,73.5,0,73.5,Sec 20/31: Transport,
Buckinghamshire Council ,31.12.2023,20.12.2023,"Planning, Growth & Sustainability",Housing & Homelessness & Regulatory PGS,AMZNMKTPLACE,871.98,0,871.98,Miscellaneous (Other)  Expenses,Miscellaneous retail
Buckinghamshire Council ,31.12.2023,20.12.2023,Adults and Health,Health & Wellbeing - Adults & Health Dir,ASDA SUPERSTORE,44.86,0,44.86,General Provisions (Food),Grocery stores
Buckinghamshire Council ,31.12.2023,20.12.2023,"Planning, Growth & Sustainability",Housing & Homelessness & Regulatory PGS,PREMIER INN,500.5,0,500.5,Homelessness,Premier Inn
Buckinghamshire Council ,31.12.2023,20.12.2023,Children's Services,Education & Childrens Services - CS Dir,QD-AYLESBURY,21.82,0,21.82,"Exp of School, Club & College Activities",Miscellaneous retail
Buckinghamshire Council ,31.12.2023,20.12.2023,Children's Services,Education & Childrens Services - CS Dir,KUZZU TURKISH BAR AND GRI,153.43,0,153.43,"Exp of School, Club & College Activities",Restaurants
Buckinghamshire Council ,31.12.2023,20.12.2023,Children's Services,Education & Childrens Services - CS Dir,DOMINO S PIZZA,65.76,0,65.76,"Exp of School, Club & College Activities",Restaurants
Buckinghamshire Council ,31.12.2023,20.12.2023,Children's Services,Education & Childrens Services - CS Dir,SAINSBURYS S/MKTS,23.3,0,23.3,"Exp of School, Club & College Activities",Grocery stores
Buckinghamshire Council ,31.12.2023,20.12.2023,Children's Services,Education & Childrens Services - CS Dir,MARKS&SPENCER PLC SA,43.7,0,43.7,"Exp of School, Club & College Activities",Grocery stores
Buckinghamshire Council ,31.12.2023,20.12.2023,Children's Services,Education & Childrens Services - CS Dir,POUNDLAND LTD - 1301,6,0,6,"Exp of School, Club & College Activities",Discount stores
Buckinghamshire Council ,31.12.2023,20.12.2023,Children's Services,Education & Childrens Services - CS Dir,AMAZON.CO.UK,319,0,319,Leaving Care - Grants for Care Leavers,Direct sales companies
Buckinghamshire Council ,31.12.2023,20.12.2023,Communities,Housing & Homelessness & Regulatory Comm,VOUCHER EXPRESS,100,0,100,Awaiting Coding,Miscellaneous retail
Buckinghamshire Council ,31.12.2023,20.12.2023,Resources,AH&R - Res Dir,AMZNMKTPLACE,31.98,0,31.98,Equipment for Homeworking,Miscellaneous retail
Buckinghamshire Council ,31.12.2023,20.12.2023,Communities,Climate Change & Environment - Community,ROADWARRIOR,12.21,0,12.21,Computer Support Services,"Programming, data processing & system design"
Buckinghamshire Council ,31.12.2023,20.12.2023,Communities,Climate Change & Environment - Community,WWW QDR SOLICITORS CO UK,160,0,160,Professional Services (non curriculum) - External,Legal services
Buckinghamshire Council ,31.12.2023,20.12.2023,Deputy Chief Executive,Communities - DCE,WWW.ARGOS.CO.UK,86.62,17.33,103.95,Other Personal Needs,Department stores
Buckinghamshire Council ,31.12.2023,20.12.2023,Deputy Chief Executive,Communities - DCE,AO RETAIL LIMITED,427.49,85.51,513,Other Personal Needs,Household appliance stores
Buckinghamshire Council ,31.12.2023,20.12.2023,Deputy Chief Executive,Communities - DCE,AO RETAIL LIMITED,469.16,93.84,563,Other Personal Needs,Household appliance stores
Buckinghamshire Council ,31.12.2023,20.12.2023,Deputy Chief Executive,Communities - DCE,AO RETAIL LIMITED,190.83,38.17,229,Other Personal Needs,Household appliance stores
Buckinghamshire Council ,31.12.2023,20.12.2023,Deputy Chief Executive,Communities - DCE,AO RETAIL LIMITED,211.65,42.33,253.98,Other Personal Needs,Household appliance stores
Buckinghamshire Council ,31.12.2023,20.12.2023,Deputy Chief Executive,Communities - DCE,AO RETAIL LIMITED,0.02,0,0.02,Other Personal Needs,Household appliance stores
Buckinghamshire Council ,31.12.2023,20.12.2023,Deputy Chief Executive,Communities - DCE,AO RETAIL LIMITED,203.33,40.67,244,Other Personal Needs,Household appliance stores
Buckinghamshire Council ,31.12.2023,20.12.2023,Deputy Chief Executive,Communities - DCE,AO RETAIL LIMITED,-621.66,-124.34,-746,Other Personal Needs,Household appliance stores
Buckinghamshire Council ,31.12.2023,20.12.2023,"Planning, Growth & Sustainability",Housing & Homelessness & Regulatory PGS,LAND REGISTRY ECOM CCC,3,0,3,Homelessness,Government services
Buckinghamshire Council ,31.12.2023,20.12.2023,Resources,AH&R - Res Dir,IRRV,462,0,462,Professional Subscriptions re Employees,Publishing & printing services
Buckinghamshire Council ,31.12.2023,20.12.2023,Children's Services,Education & Childrens Services - CS Dir,SHARDELOES FARM EC,120,0,120,YOS - Direct Work,Misc. recreational services
Buckinghamshire Council ,31.12.2023,20.12.2023,Resources,AH&R - Res Dir,GEN REGISTER OFFICE,11,0,11,Miscellaneous (Other)  Expenses,Government services
Buckinghamshire Council ,31.12.2023,20.12.2023,Children's Services,Education & Childrens Services - CS Dir,AMZNMKTPLACE,-13.27,0,-13.27,Consumable Supplies,Miscellaneous retail
Buckinghamshire Council ,31.12.2023,20.12.2023,Resources,AH&R - Res Dir,TRAINLINE,6.7,0,6.7,Staff Travelling Expenses,Passenger railways
Buckinghamshire Council ,31.12.2023,20.12.2023,Children's Services,Education & Childrens Services - CS Dir,SAINSBURY'S S/MKT,6.57,0,6.57,Educational Equipment,Grocery stores
Buckinghamshire Council ,31.12.2023,20.12.2023,Communities,Transport - Communities Dir,AMZNMKTPLACE,21.99,0,21.99,Area Teams and Materials,Miscellaneous retail
Buckinghamshire Council ,31.12.2023,20.12.2023,Communities,Transport - Communities Dir,AMZNMKTPLACE,21.99,0,21.99,Area Teams and Materials,Miscellaneous retail
Buckinghamshire Council ,31.12.2023,20.12.2023,Children's Services,Education & Childrens Services - CS Dir,TESCO STORES 2038,39.5,0,39.5,Awaiting Coding,Grocery stores
Buckinghamshire Council ,31.12.2023,20.12.2023,Communities,Climate Change & Environment - Community,PAYPAL,232.18,0,232.18,Advertising,Advertising services
Buckinghamshire Council ,31.12.2023,20.12.2023,"Planning, Growth & Sustainability",AH&R - PGS Dir,ASDA SUPERSTORE,8.7,0,8.7,General Provisions (Food),Grocery stores
Buckinghamshire Council ,31.12.2023,20.12.2023,"Planning, Growth & Sustainability",Climate Change & Environment - PGS,GOOD LIFE INNOVATIONS,"3,790.00",758,"4,548.00",Advertising,Misc. general merchandise
Buckinghamshire Council ,31.12.2023,20.12.2023,"Planning, Growth & Sustainability",Climate Change & Environment - PGS,AMZNMKTPLACE,170.64,34.14,204.78,Equipment,Miscellaneous retail
Buckinghamshire Council ,31.12.2023,20.12.2023,Communities,Culture & Leisure - Communities Dir,SARNAU ARMY SURPLUS LTD,67.9,0,67.9,Awaiting Coding,Family clothing shops
Buckinghamshire Council ,31.12.2023,20.12.2023,Communities,Culture & Leisure - Communities Dir,WORKWEAR EXPRESS,977.32,0,977.32,Protective Clothing & Uniforms,Uniforms & commercial clothing
Buckinghamshire Council ,31.12.2023,20.12.2023,Children's Services,Education & Childrens Services - CS Dir,BKG*HOTEL AT BOOKING.C,67.5,0,67.5,Staff Travelling Expenses,Travel agencies
Buckinghamshire Council ,31.12.2023,20.12.2023,Children's Services,Education & Childrens Services - CS Dir,EBAY O*23-10946-20809,8.99,0,8.99,Professional Services (non curriculum) - External,Department stores
Buckinghamshire Council ,31.12.2023,20.12.2023,Children's Services,Education & Childrens Services - CS Dir,QD-AYLESBURY,32.99,0,32.99,Awaiting Coding,Miscellaneous retail
Buckinghamshire Council ,31.12.2023,20.12.2023,Children's Services,Education & Childrens Services - CS Dir,WH Smith Aylesbury,41.23,0,41.23,"Books, Records, Films & Oth Publications",Newspapers / newsagents
Buckinghamshire Council ,31.12.2023,20.12.2023,Children's Services,Education & Childrens Services - CS Dir,POUNDLAND LTD - 1301,8,0,8,Awaiting Coding,Discount stores
Buckinghamshire Council ,31.12.2023,20.12.2023,Children's Services,Education & Childrens Services - CS Dir,"BOOTS,AYLESBURY",10,0,10,Medical Supplies & Services inc Vet'nary,Chemists & pharmacies
Buckinghamshire Council ,31.12.2023,20.12.2023,Children's Services,Education & Childrens Services - CS Dir,STARBUCKS AYLESBURY,10,0,10,Awaiting Coding,
Buckinghamshire Council ,31.12.2023,20.12.2023,Children's Services,Education & Childrens Services - CS Dir,WATERSTONES,9.99,0,9.99,"Books, Records, Films & Oth Publications",Book stores
Buckinghamshire Council ,31.12.2023,20.12.2023,Children's Services,Education & Childrens Services - CS Dir,THE WORKS,3.5,0,3.5,Awaiting Coding,Discount stores
Buckinghamshire Council ,31.12.2023,20.12.2023,Deputy Chief Executive,AH&R- DCE Dir,MILLER & CARTER,299.85,0,299.85,"Courses, Conference and Seminar Fees",Restaurants
Buckinghamshire Council ,31.12.2023,20.12.2023,Children's Services,Education & Childrens Services - CS Dir,TRAINLINE,83.49,0,83.49,Leaving Care - Transport,Passenger railways
Buckinghamshire Council ,31.12.2023,20.12.2023,Children's Services,Education & Childrens Services - CS Dir,STUDENT ROOST,845.86,0,845.86,Leaving Care - Higher Education Supp,Estate Agents & Property Management
Buckinghamshire Council ,31.12.2023,20.12.2023,Children's Services,Education & Childrens Services - CS Dir,CURRYS ONLINE,549,0,549,Leaving Care - Grants for Care Leavers,Electronics shops
Buckinghamshire Council ,31.12.2023,20.12.2023,Children's Services,Education & Childrens Services - CS Dir,OSPREY CHARGING NETWOR,29.86,0,29.86,Car Allowances Mileage & Lump Sum,
Buckinghamshire Council ,31.12.2023,20.12.2023,Communities,ommunities - Trust Accounts,WWW.BUCKINGHAMSHIRE.GOV,295,0,295,Awaiting Coding,Government services
Buckinghamshire Council ,31.12.2023,20.12.2023,Communities,ommunities - Trust Accounts,LIDL GB SLOUGH,9.95,0,9.95,Awaiting Coding,Grocery stores
Buckinghamshire Council ,31.12.2023,20.12.2023,Children's Services,Education & Childrens Services - CS Dir,ABSOLUTELY TEN PIN,35,0,35,YOS - Direct Work,Misc. recreational services
Buckinghamshire Council ,31.12.2023,20.12.2023,Children's Services,Education & Childrens Services - CS Dir,CARD FACTORY,9.33,0,9.33,Awaiting Coding,"Gift, card & novelty shops"
Buckinghamshire Council ,31.12.2023,20.12.2023,Children's Services,Education & Childrens Services - CS Dir,Ashco,7.98,0,7.98,Awaiting Coding,Hardware stores
Buckinghamshire Council ,31.12.2023,20.12.2023,Children's Services,Education & Childrens Services - CS Dir,THE WORKS,33.5,0,33.5,Awaiting Coding,Discount stores
Buckinghamshire Council ,31.12.2023,20.12.2023,Children's Services,Education & Childrens Services - CS Dir,THE WORKS,10,0,10,Awaiting Coding,Discount stores
Buckinghamshire Council ,31.12.2023,20.12.2023,Children's Services,Education & Childrens Services - CS Dir,ONE BELOW,44,0,44,Awaiting Coding,Grocery stores
Buckinghamshire Council ,31.12.2023,20.12.2023,Children's Services,Education & Childrens Services - CS Dir,POUNDLAND LTD - 1301,2,0,2,Awaiting Coding,Discount stores
Buckinghamshire Council ,31.12.2023,20.12.2023,Children's Services,Education & Childrens Services - CS Dir,POUNDLAND LTD - 1301,5.5,0,5.5,Awaiting Coding,Discount stores
Buckinghamshire Council ,31.12.2023,20.12.2023,Children's Services,Education & Childrens Services - CS Dir,TRAINLINE,30.35,0,30.35,Staff Travelling Expenses,Passenger railways
Buckinghamshire Council ,31.12.2023,20.12.2023,Resources,AH&R - Res Dir,BRENT COUNCIL,-11,0,-11,Miscellaneous (Other)  Expenses,Government services
Buckinghamshire Council ,31.12.2023,20.12.2023,Children's Services,Education & Childrens Services - CS Dir,TRAINLINE,34.8,0,34.8,Staff Travelling Expenses,Passenger railways
Buckinghamshire Council ,31.12.2023,19.12.2023,Children's Services,Education & Childrens Services - CS Dir,AMZNMKTPLACE,27.97,0,27.97,Other Personal Needs,Miscellaneous retail
Buckinghamshire Council ,31.12.2023,19.12.2023,Children's Services,Education & Childrens Services - CS Dir,AMAZON.CO.UK,7.15,0,7.15,"Books, Records, Films & Oth Publications",Direct sales companies
Buckinghamshire Council ,31.12.2023,19.12.2023,"Planning, Growth & Sustainability",Housing & Homelessness & Regulatory PGS,LAND REGISTRY ECOM CCC,3,0,3,Homelessness,Government services
Buckinghamshire Council ,31.12.2023,19.12.2023,"Planning, Growth & Sustainability",Climate Change & Environment - PGS,WEX PHOTO,-73.99,0,-73.99,Advertising,Camera & photographic supply shop
Buckinghamshire Council ,31.12.2023,19.12.2023,Children's Services,Education & Childrens Services - CS Dir,WWW.THERANGE.CO.UK,-329.99,0,-329.99,Leaving Care - Grants for Care Leavers,Misc. home furnishing
Buckinghamshire Council ,31.12.2023,19.12.2023,Children's Services,Education & Childrens Services - CS Dir,AMZNMKTPLACE,109.9,0,109.9,Other Personal Needs,Miscellaneous retail
Buckinghamshire Council ,31.12.2023,19.12.2023,"Planning, Growth & Sustainability",Planning & Regeneration - PGS,RTPI,178,0,178,Professional Subscriptions re Employees,"Member clubs, sport, recreation & golf"
Buckinghamshire Council ,31.12.2023,19.12.2023,Communities,Culture & Leisure - Communities Dir,AMZNMKTPLACE,6.24,1.25,7.49,"Workshop - Materials,Tools & Equipment",Miscellaneous retail
Buckinghamshire Council ,31.12.2023,19.12.2023,Children's Services,Education & Childrens Services - CS Dir,APPLE.COM/UK,400,0,400,Computer Consumables,Electronics shops
Buckinghamshire Council ,31.12.2023,19.12.2023,"Planning, Growth & Sustainability",AH&R - PGS Dir,PARKING-SWAN POOL,1.1,0,1.1,Other Equipment and Materials,Car parking & garages
Buckinghamshire Council ,31.12.2023,19.12.2023,Deputy Chief Executive,Communities - DCE,JULES FUELS,300,0,300,Other Personal Needs,Fuel dealers
Buckinghamshire Council ,31.12.2023,19.12.2023,Deputy Chief Executive,Communities - DCE,AO RETAIL LIMITED,539.99,108.01,648,Other Personal Needs,Household appliance stores
Buckinghamshire Council ,31.12.2023,19.12.2023,Deputy Chief Executive,Communities - DCE,AO RETAIL LIMITED,859.99,172.01,"1,032.00",Other Personal Needs,Household appliance stores
Buckinghamshire Council ,31.12.2023,19.12.2023,Deputy Chief Executive,Communities - DCE,AO RETAIL LIMITED,469.16,93.84,563,Other Personal Needs,Household appliance stores
Buckinghamshire Council ,31.12.2023,19.12.2023,Deputy Chief Executive,Communities - DCE,AO RETAIL LIMITED,580.83,116.17,697,Other Personal Needs,Household appliance stores
Buckinghamshire Council ,31.12.2023,19.12.2023,Deputy Chief Executive,Communities - DCE,AO RETAIL LIMITED,575.83,115.17,691,Other Personal Needs,Household appliance stores
Buckinghamshire Council ,31.12.2023,19.12.2023,Deputy Chief Executive,Communities - DCE,AO RETAIL LIMITED,621.66,124.34,746,Other Personal Needs,Household appliance stores
Buckinghamshire Council ,31.12.2023,19.12.2023,Deputy Chief Executive,Communities - DCE,AO RETAIL LIMITED,588.33,117.67,706,Other Personal Needs,Household appliance stores
Buckinghamshire Council ,31.12.2023,19.12.2023,Deputy Chief Executive,Communities - DCE,WWW.ARGOS.CO.UK,153.29,30.66,183.95,Other Personal Needs,Department stores
Buckinghamshire Council ,31.12.2023,19.12.2023,Deputy Chief Executive,Communities - DCE,WWW.ARGOS.CO.UK,222.45,44.49,266.94,Other Personal Needs,Department stores
Buckinghamshire Council ,31.12.2023,19.12.2023,Deputy Chief Executive,Communities - DCE,WWW.ARGOS.CO.UK,0.01,0,0.01,Other Personal Needs,Department stores
Buckinghamshire Council ,31.12.2023,19.12.2023,"Planning, Growth & Sustainability",AH&R - PGS Dir,AMAZON.CO.UK,19.99,0,19.99,Purchase.of Refreshments and Food,Direct sales companies
Buckinghamshire Council ,31.12.2023,19.12.2023,Children's Services,Education & Childrens Services - CS Dir,BAKER ROSS,108.06,0,108.06,Activities & General Recreation,Art & craft shops
Buckinghamshire Council ,31.12.2023,19.12.2023,Children's Services,Education & Childrens Services - CS Dir,SAINSBURYS S/MKTS,26.63,0,26.63,Educational Equipment,Grocery stores
Buckinghamshire Council ,31.12.2023,19.12.2023,Communities,Transport - Communities Dir,AMZNMKTPLACE,26.48,0,26.48,Materials,Miscellaneous retail
Buckinghamshire Council ,31.12.2023,19.12.2023,Children's Services,Education & Childrens Services - CS Dir,HM PASSPORT OFFICE,82.5,0,82.5,Sec 20/31: Specialist Services,Government services
Buckinghamshire Council ,31.12.2023,19.12.2023,Children's Services,Education & Childrens Services - CS Dir,QD-AYLESBURY,20.93,0,20.93,Awaiting Coding,Miscellaneous retail
Buckinghamshire Council ,31.12.2023,19.12.2023,Adults and Health,Health & Wellbeing - Adults & Health Dir,BKG*HOTEL AT BOOKING.C,263.94,0,263.94,Other Short Term Support,Travel agencies
Buckinghamshire Council ,31.12.2023,19.12.2023,Communities,Climate Change & Environment - Community,HELLOPRINT UNITED KINGDOM,478.6,0,478.6,Photocopiers,Photocopy & reproduction services
Buckinghamshire Council ,31.12.2023,19.12.2023,Communities,Climate Change & Environment - Community,POSTURITE LTD,340.35,0,340.35,Administrative Equipment & Tools,Misc. home furnishing
Buckinghamshire Council ,31.12.2023,19.12.2023,Deputy Chief Executive,AH&R- DCE Dir,SUMUP  *ARROW TRANSPOR,105.6,0,105.6,Other Personal Needs,Taxicabs & limousines
Buckinghamshire Council ,31.12.2023,19.12.2023,Children's Services,Education & Childrens Services - CS Dir,TESCO STORES 2038,48.3,0,48.3,Awaiting Coding,Grocery stores
Buckinghamshire Council ,31.12.2023,19.12.2023,Children's Services,Education & Childrens Services - CS Dir,The Works,5.95,0,5.95,Subsistence,Restaurants
Buckinghamshire Council ,31.12.2023,19.12.2023,Children's Services,Education & Childrens Services - CS Dir,AMZNMKTPLACE,134.94,27,161.94,"Exp of School, Club & College Activities",Miscellaneous retail
Buckinghamshire Council ,31.12.2023,19.12.2023,Communities,Transport - Communities Dir,POST OFFICE COUNTER,2.75,0,2.75,General Postage,Postal services
Buckinghamshire Council ,31.12.2023,19.12.2023,Communities,Culture & Leisure - Communities Dir,WWW.BUCKINGHAMSHIRE.GOV,26.55,0,26.55,Administrative Equipment & Tools,Government services
Buckinghamshire Council ,31.12.2023,19.12.2023,Children's Services,Education & Childrens Services - CS Dir,BUCKS NEW ONLINE,-346.11,0,-346.11,Leaving Care - Higher Education Supp,Colleges & universities
Buckinghamshire Council ,31.12.2023,19.12.2023,Communities,ommunities - Trust Accounts,WICKES SLOUGH,152,0,152,General Repairs & Maintenance,Timber & building supplies
Buckinghamshire Council ,31.12.2023,19.12.2023,Resources,AH&R - Res Dir,LINKEDIN ADS 9724358504,114.14,0,114.14,Permanent Recruitment Costs,Advertising services
Buckinghamshire Council ,31.12.2023,19.12.2023,"Planning, Growth & Sustainability",Housing & Homelessness & Regulatory PGS,CARD FACTORY,74.82,0,74.82,Furniture,"Gift, card & novelty shops"
Buckinghamshire Council ,31.12.2023,19.12.2023,Communities,Housing & Homelessness & Regulatory Comm,E.ON NEXT,19.31,0,19.31,Electricity,Utilities
Buckinghamshire Council ,31.12.2023,19.12.2023,Adults and Health,Health & Wellbeing - Adults & Health Dir,SP HAZKIT.CO.UK,94.2,0,94.2,Other Supplies,Hardware stores
Buckinghamshire Council ,31.12.2023,19.12.2023,"Planning, Growth & Sustainability",Housing & Homelessness & Regulatory PGS,ARCO LIMITED,156.58,31.32,187.9,Administrative Equipment & Tools,Misc Industrial supplies
Buckinghamshire Council ,31.12.2023,19.12.2023,Children's Services,Education & Childrens Services - CS Dir,TRAINLINE,59,0,59,Sec 20/31: Transport,Passenger railways
Buckinghamshire Council ,31.12.2023,19.12.2023,Children's Services,Education & Childrens Services - CS Dir,TRAINLINE,45,0,45,Sec 20/31: Financial Assistance,Passenger railways
Buckinghamshire Council ,31.12.2023,19.12.2023,Children's Services,Education & Childrens Services - CS Dir,TRAINLINE,60.6,0,60.6,Staff Travelling Expenses,Passenger railways
Buckinghamshire Council ,31.12.2023,19.12.2023,Deputy Chief Executive,AH&R- DCE Dir,PAYPAL,386.2,0,386.2,Awaiting Coding,Variety stores
Buckinghamshire Council ,31.12.2023,19.12.2023,Children's Services,Education & Childrens Services - CS Dir,ICELAND FOODS,59.75,0,59.75,Activities & General Recreation,Grocery stores
Buckinghamshire Council ,31.12.2023,18.12.2023,Children's Services,Education & Childrens Services - CS Dir,AMZNMKTPLACE,112.71,0,112.71,Other Personal Needs,Miscellaneous retail
Buckinghamshire Council ,31.12.2023,18.12.2023,"Planning, Growth & Sustainability",AH&R - PGS Dir,IOSH SERVICES LTD,201.6,0,201.6,"Workshop - Materials,Tools & Equipment",Schools
Buckinghamshire Council ,31.12.2023,18.12.2023,Children's Services,Education & Childrens Services - CS Dir,PREMIER INN,66,0,66,Sec 20/31: Supp for Contact,Premier Inn
Buckinghamshire Council ,31.12.2023,18.12.2023,"Planning, Growth & Sustainability",Housing & Homelessness & Regulatory PGS,LAND REGISTRY ECOM CCC,3,0,3,Homelessness,Government services
Buckinghamshire Council ,31.12.2023,18.12.2023,Children's Services,Education & Childrens Services - CS Dir,STARBUCKS,9.85,0,9.85,"Exp of School, Club & College Activities",Fast food restaurants
Buckinghamshire Council ,31.12.2023,18.12.2023,Children's Services,Education & Childrens Services - CS Dir,FURNITURE 123,388.74,0,388.74,Leaving Care - Grants for Care Leavers,Electronics shops
Buckinghamshire Council ,31.12.2023,18.12.2023,Children's Services,Education & Childrens Services - CS Dir,TRAINLINE,14.19,0,14.19,Leaving Care - Transport,Passenger railways
Buckinghamshire Council ,31.12.2023,18.12.2023,Children's Services,Education & Childrens Services - CS Dir,TESCO STORES 2038,127.57,0,127.57,General Provisions (Food),Grocery stores
Buckinghamshire Council ,31.12.2023,18.12.2023,Children's Services,Education & Childrens Services - CS Dir,AMZNMKTPLACE,12.99,0,12.99,Other Personal Needs,Miscellaneous retail
Buckinghamshire Council ,31.12.2023,18.12.2023,Children's Services,Education & Childrens Services - CS Dir,AMZNMKTPLACE,122.4,0,122.4,Other Personal Needs,Miscellaneous retail
Buckinghamshire Council ,31.12.2023,18.12.2023,Children's Services,Education & Childrens Services - CS Dir,AMZNMKTPLACE,10.18,0,10.18,Other Personal Needs,Miscellaneous retail
Buckinghamshire Council ,31.12.2023,18.12.2023,CC Obsolete Cost Centres,Obsolete Cost Centres,TRAINLINE,203.99,0,203.99,Staff Travelling Expenses,Passenger railways
Buckinghamshire Council ,31.12.2023,18.12.2023,"Planning, Growth & Sustainability",Planning & Regeneration - PGS,RTPI,107,0,107,Professional Subscriptions re Employees,"Member clubs, sport, recreation & golf"
Buckinghamshire Council ,31.12.2023,18.12.2023,Children's Services,Education & Childrens Services - CS Dir,CURRYS BUSINESS,305.8,61.16,366.96,Computer Consumables,Computer software stores
Buckinghamshire Council ,31.12.2023,18.12.2023,Children's Services,Education & Childrens Services - CS Dir,CURRYS BUSINESS,0.02,0,0.02,Computer Consumables,Computer software stores
Buckinghamshire Council ,31.12.2023,18.12.2023,Deputy Chief Executive,Communities - DCE,AO RETAIL LIMITED,203.33,40.67,244,Other Personal Needs,Household appliance stores
Buckinghamshire Council ,31.12.2023,18.12.2023,Communities,Housing & Homelessness & Regulatory Comm,NPORS LTD,30,0,30,Maintenance of Grounds,Primary & secondary school
Buckinghamshire Council ,31.12.2023,18.12.2023,"Planning, Growth & Sustainability",AH&R - PGS Dir,EDMUNDSON ELECTRICAL,52.32,0,52.32,General Repairs & Maintenance,Electrical parts & equipment
Buckinghamshire Council ,31.12.2023,18.12.2023,Children's Services,Education & Childrens Services - CS Dir,SAINSBURY S S/MKTS,45.7,0,45.7,Educational Equipment,Grocery stores
Buckinghamshire Council ,31.12.2023,18.12.2023,"Planning, Growth & Sustainability",Planning & Regeneration - PGS,HSE - BSR,336,0,336,Reg & Exam Fees for External Courses,Government services
Buckinghamshire Council ,31.12.2023,18.12.2023,Children's Services,Education & Childrens Services - CS Dir,AMAZON.CO.UK,16.99,0,16.99,"Books, Records, Films & Oth Publications",Direct sales companies
Buckinghamshire Council ,31.12.2023,18.12.2023,Children's Services,Education & Childrens Services - CS Dir,AMZNMKTPLACE,96.79,0,96.79,"Books, Records, Films & Oth Publications",Miscellaneous retail
Buckinghamshire Council ,31.12.2023,18.12.2023,Children's Services,Education & Childrens Services - CS Dir,O2 UK,10,0,10,Telephones,Phone equipment & sales
Buckinghamshire Council ,31.12.2023,18.12.2023,Communities,Culture & Leisure - Communities Dir,WORKWEAR EXPRESS,358.6,71.72,430.32,Protective Clothing & Uniforms,Uniforms & commercial clothing
Buckinghamshire Council ,31.12.2023,18.12.2023,Children's Services,Education & Childrens Services - CS Dir,ASDA  STORES 4396,6.9,0,6.9,General Provisions (Food),Grocery stores
Buckinghamshire Council ,31.12.2023,18.12.2023,Children's Services,Education & Childrens Services - CS Dir,TESCO STORES 2041,13.8,0,13.8,Awaiting Coding,Grocery stores
Buckinghamshire Council ,31.12.2023,18.12.2023,Children's Services,Education & Childrens Services - CS Dir,SumUp  *James  Kitchen,3.7,0,3.7,Subsistence,Restaurants
Buckinghamshire Council ,31.12.2023,18.12.2023,"Planning, Growth & Sustainability",AH&R - PGS Dir,WWW.SCREWFIX.COM,99.13,19.83,118.96,General Repairs & Maintenance,Timber & building supplies
Buckinghamshire Council ,31.12.2023,18.12.2023,Children's Services,Education & Childrens Services - CS Dir,SP SLEEP-BEDS,389.95,0,389.95,Leaving Care - Grants for Care Leavers,Furniture & home furnishing
Buckinghamshire Council ,31.12.2023,18.12.2023,Children's Services,Education & Childrens Services - CS Dir,TRAINLINE,92.39,0,92.39,Leaving Care - Transport,Passenger railways
Buckinghamshire Council ,31.12.2023,18.12.2023,Adults and Health,Health & Wellbeing - Adults & Health Dir,TESCO STORES 5135,234.92,0,234.92,General Provisions (Food),Grocery stores
Buckinghamshire Council ,31.12.2023,18.12.2023,"Planning, Growth & Sustainability",Planning & Regeneration - PGS,SUMUP  *SELF EMPLOYED,8,0,8,Staff Travelling Expenses,Taxicabs & limousines
Buckinghamshire Council ,31.12.2023,18.12.2023,"Planning, Growth & Sustainability",Planning & Regeneration - PGS,ARRIVA THE SHIRES LIMITED,2,0,2,Staff Travelling Expenses,"Buses, charter & tour"
Buckinghamshire Council ,31.12.2023,18.12.2023,"Planning, Growth & Sustainability",Planning & Regeneration - PGS,TRAINLINE.COM LTD,21.6,0,21.6,Staff Travelling Expenses,Passenger railways
Buckinghamshire Council ,31.12.2023,18.12.2023,Adults and Health,Health & Wellbeing - Adults & Health Dir,ASDA GROCERIES ONLINE,101.19,0,101.19,General Provisions (Food),Grocery stores
Buckinghamshire Council ,31.12.2023,18.12.2023,Children's Services,Education & Childrens Services - CS Dir,ARRIVA UK BUS,8,0,8,Sec 20/31: Supp for Contact,"Buses, charter & tour"
Buckinghamshire Council ,31.12.2023,18.12.2023,Children's Services,Education & Childrens Services - CS Dir,FIRST BUS - WEB,15.6,0,15.6,Sec 20/31: Supp for Contact,"Buses, charter & tour"
Buckinghamshire Council ,31.12.2023,18.12.2023,Children's Services,Education & Childrens Services - CS Dir,TRAINLINE,23.59,0,23.59,Sec 20/31: Supp for Contact,Passenger railways
Buckinghamshire Council ,31.12.2023,18.12.2023,"Planning, Growth & Sustainability",Planning & Regeneration - PGS,TFL TRAVEL CH,9.1,0,9.1,Staff Travelling Expenses,Local commuter transport
Buckinghamshire Council ,31.12.2023,18.12.2023,"Planning, Growth & Sustainability",Planning & Regeneration - PGS,TFL TRAVEL CH,11.3,0,11.3,Staff Travelling Expenses,Local commuter transport
Buckinghamshire Council ,31.12.2023,17.12.2023,Children's Services,Education & Childrens Services - CS Dir,PRIME - STANHOPE HOUSE,"2,924.00",0,"2,924.00",Leaving Care - Higher Education Supp,"Hotels, motels & resorts"
Buckinghamshire Council ,31.12.2023,17.12.2023,Children's Services,Education & Childrens Services - CS Dir,IKEA LTD 141 WEMBLEY MAIN,69.6,0,69.6,Activities & General Recreation,Furniture & home furnishing
Buckinghamshire Council ,31.12.2023,17.12.2023,Communities,Transport - Communities Dir,JORDANS JEWELLERS,5.9,0,5.9,Materials,Jewellers
Buckinghamshire Council ,31.12.2023,17.12.2023,Deputy Chief Executive,Leader - DCE,FACEBK Q3ETVWKPN2,840,0,840,Advertising,Advertising services
Buckinghamshire Council ,31.12.2023,17.12.2023,Resources,AH&R - Res Dir,Amazon.co.uk,349,0,349,Stationery & Office Supplies,Direct sales companies
Buckinghamshire Council ,31.12.2023,17.12.2023,Communities,Housing & Homelessness & Regulatory Comm,AMZNMKTPLACE,20.99,0,20.99,General Repairs & Maintenance,Miscellaneous retail
Buckinghamshire Council ,31.12.2023,17.12.2023,Children's Services,Education & Childrens Services - CS Dir,CANVA* 04002-20171041,34.99,0,34.99,Marketing,"Commercial photo, art & graphic"
Buckinghamshire Council ,31.12.2023,16.12.2023,"Planning, Growth & Sustainability",Housing & Homelessness & Regulatory PGS,AMZNMKTPLACE,72.99,0,72.99,Miscellaneous (Other)  Expenses,Miscellaneous retail
Buckinghamshire Council ,31.12.2023,16.12.2023,"Planning, Growth & Sustainability",Climate Change & Environment - PGS,AMZNMKTPLACE,-14.29,0,-14.29,Advertising,Miscellaneous retail
Buckinghamshire Council ,31.12.2023,16.12.2023,Children's Services,Education & Childrens Services - CS Dir,AMAZON.CO.UK,109,0,109,Stationery & Office Supplies,Direct sales companies
Buckinghamshire Council ,31.12.2023,16.12.2023,Resources,AH&R - Res Dir,YTC (WHITBY),9.79,0,9.79,Course Fees & Post Entry Training,Miscellaneous retail
Buckinghamshire Council ,31.12.2023,16.12.2023,Communities,Culture & Leisure - Communities Dir,SCREWFIX DIR LTD,-14.15,-2.83,-16.98,"Workshop - Materials,Tools & Equipment",Timber & building supplies
Buckinghamshire Council ,31.12.2023,16.12.2023,Communities,Culture & Leisure - Communities Dir,SCREWFIX DIR LTD,-0.01,0,-0.01,"Workshop - Materials,Tools & Equipment",Timber & building supplies
Buckinghamshire Council ,31.12.2023,16.12.2023,Resources,AH&R - Res Dir,LINKEDIN ADS 9714971754,169.09,0,169.09,Permanent Recruitment Costs,Advertising services
Buckinghamshire Council ,31.12.2023,15.12.2023,Deputy Chief Executive,AH&R- DCE Dir,PAYPAL,596.95,0,596.95,Awaiting Coding,Variety stores
Buckinghamshire Council ,31.12.2023,15.12.2023,Deputy Chief Executive,AH&R- DCE Dir,PAYPAL,225,0,225,Awaiting Coding,Variety stores
Buckinghamshire Council ,31.12.2023,15.12.2023,Deputy Chief Executive,AH&R- DCE Dir,PAYPAL,279,0,279,Awaiting Coding,Electronics shops
Buckinghamshire Council ,31.12.2023,15.12.2023,Deputy Chief Executive,AH&R- DCE Dir,PAYPAL,772,0,772,Awaiting Coding,Electronics shops
Buckinghamshire Council ,31.12.2023,15.12.2023,Deputy Chief Executive,AH&R- DCE Dir,PAYPAL,-279,0,-279,Awaiting Coding,Electronics shops
Buckinghamshire Council ,31.12.2023,15.12.2023,"Planning, Growth & Sustainability",Partnership Climate Change & Envir - PGS,AWS EMEA,69.74,0,69.74,Computer Software Licences & Purchase,Misc business services
Buckinghamshire Council ,31.12.2023,15.12.2023,Communities,Climate Change & Environment - Community,GWR OXFORD SST,85.3,0,85.3,Staff Travelling Expenses,Passenger railways
Buckinghamshire Council ,31.12.2023,15.12.2023,Children's Services,Education & Childrens Services - CS Dir,AMZNMKTPLACE,44.54,0,44.54,Leaving Care - Grants for Care Leavers,Miscellaneous retail
Buckinghamshire Council ,31.12.2023,15.12.2023,Children's Services,Education & Childrens Services - CS Dir,AMZNMKTPLACE,17.15,0,17.15,Leaving Care - Grants for Care Leavers,Miscellaneous retail
Buckinghamshire Council ,31.12.2023,15.12.2023,Children's Services,Education & Childrens Services - CS Dir,VERY,363.99,0,363.99,Leaving Care - Grants for Care Leavers,Catalogue sales
Buckinghamshire Council ,31.12.2023,15.12.2023,Children's Services,Education & Childrens Services - CS Dir,WWW.ARGOS.CO.UK,45,0,45,Leaving Care - Grants for Care Leavers,Department stores
Buckinghamshire Council ,31.12.2023,15.12.2023,Resources,AH&R - Res Dir,ALDI STORES,24.35,0,24.35,Course Fees & Post Entry Training,Grocery stores
Buckinghamshire Council ,31.12.2023,15.12.2023,Deputy Chief Executive,AH&R- DCE Dir,CONSULTATION INSTITUTE,182.4,0,182.4,Local Staff Training,Membership organisations
Buckinghamshire Council ,31.12.2023,15.12.2023,Deputy Chief Executive,Communities - DCE,WWW.ARGOS.CO.UK,222.45,44.49,266.94,Other Personal Needs,Department stores
Buckinghamshire Council ,31.12.2023,15.12.2023,Deputy Chief Executive,Communities - DCE,WWW.ARGOS.CO.UK,0.01,0,0.01,Other Personal Needs,Department stores
Buckinghamshire Council ,31.12.2023,15.12.2023,Deputy Chief Executive,Communities - DCE,WWW.ARGOS.CO.UK,153.29,30.66,183.95,Other Personal Needs,Department stores
Buckinghamshire Council ,31.12.2023,15.12.2023,Deputy Chief Executive,Communities - DCE,WWW.ARGOS.CO.UK,82.45,16.49,98.94,Other Personal Needs,Department stores
Buckinghamshire Council ,31.12.2023,15.12.2023,Deputy Chief Executive,Communities - DCE,WWW.ARGOS.CO.UK,0.01,0,0.01,Other Personal Needs,Department stores
Buckinghamshire Council ,31.12.2023,15.12.2023,Deputy Chief Executive,Communities - DCE,AO RETAIL LIMITED,124.16,24.84,149,Other Personal Needs,Household appliance stores
Buckinghamshire Council ,31.12.2023,15.12.2023,Deputy Chief Executive,Communities - DCE,AO RETAIL LIMITED,602.49,120.51,723,Other Personal Needs,Household appliance stores
Buckinghamshire Council ,31.12.2023,15.12.2023,Deputy Chief Executive,Communities - DCE,AO RETAIL LIMITED,390.83,78.17,469,Other Personal Needs,Household appliance stores
Buckinghamshire Council ,31.12.2023,15.12.2023,Deputy Chief Executive,Communities - DCE,AO RETAIL LIMITED,552.49,110.51,663,Other Personal Needs,Household appliance stores
Buckinghamshire Council ,31.12.2023,15.12.2023,Deputy Chief Executive,Communities - DCE,AO RETAIL LIMITED,834.99,167.01,"1,002.00",Other Personal Needs,Household appliance stores
Buckinghamshire Council ,31.12.2023,15.12.2023,Deputy Chief Executive,Communities - DCE,AO RETAIL LIMITED,232.5,46.5,279,Other Personal Needs,Household appliance stores
Buckinghamshire Council ,31.12.2023,15.12.2023,Children's Services,Education & Childrens Services - CS Dir,AMZNMktplace,100.07,0,100.07,Awaiting Coding,Miscellaneous retail
Buckinghamshire Council ,31.12.2023,15.12.2023,Communities,Transport - Communities Dir,SAINSBURYS S/MKTS,9.6,0,9.6,Materials,Grocery stores
Buckinghamshire Council ,31.12.2023,15.12.2023,Children's Services,Education & Childrens Services - CS Dir,ATGTICKETS.COM,50.6,0,50.6,Miscellaneous (Other)  Expenses,Theatres and ticket agencies
Buckinghamshire Council ,31.12.2023,15.12.2023,Children's Services,Education & Childrens Services - CS Dir,ASDAN,10.95,0,10.95,"Courses, Conference and Seminar Fees",Schools
Buckinghamshire Council ,31.12.2023,15.12.2023,Children's Services,Education & Childrens Services - CS Dir,ASDA GROCERIES ONLINE,58.44,0,58.44,Furniture,Grocery stores
Buckinghamshire Council ,31.12.2023,15.12.2023,Resources,AH&R - Res Dir,FINANCIAL TIMES,55,0,55,"Books, Records, Films & Oth Publications","Books, periodicals & newspapers"
Buckinghamshire Council ,31.12.2023,15.12.2023,Deputy Chief Executive,AH&R- DCE Dir,WWW.ANYVAN.COM,300,0,300,Equipment (including storage),"Haulage, removals & delivery"
Buckinghamshire Council ,31.12.2023,15.12.2023,Children's Services,Education & Childrens Services - CS Dir,TESCO STORES 5927,5.5,0,5.5,General Provisions (Food),Grocery stores
Buckinghamshire Council ,31.12.2023,15.12.2023,Adults and Health,Health & Wellbeing - Adults & Health Dir,AMZNMKTPLACE,15.8,3.17,18.97,Other Equipment and Materials,Miscellaneous retail
Buckinghamshire Council ,31.12.2023,15.12.2023,Children's Services,Education & Childrens Services - CS Dir,NEALES TAXIS LTD,540,108,648,Sec 20/31: Transport,Taxicabs & limousines
Buckinghamshire Council ,31.12.2023,15.12.2023,Adults and Health,Health & Wellbeing - Adults & Health Dir,WM MORRISONS STORE,56.95,0,56.95,General Provisions (Food),Grocery stores
Buckinghamshire Council ,31.12.2023,14.12.2023,Children's Services,Education & Childrens Services - CS Dir,AMZNMKTPLACE,38,0,38,YOS - Direct Work,Miscellaneous retail
Buckinghamshire Council ,31.12.2023,14.12.2023,Adults and Health,Health & Wellbeing - Adults & Health Dir,ASDA SUPERSTORE,15.8,0,15.8,General Provisions (Food),Grocery stores
Buckinghamshire Council ,31.12.2023,14.12.2023,"Planning, Growth & Sustainability",Housing & Homelessness & Regulatory PGS,DB MASTER LOCKSMITH LT,180,0,180,Works In Default,Computer software stores
Buckinghamshire Council ,31.12.2023,14.12.2023,"Planning, Growth & Sustainability",Housing & Homelessness & Regulatory PGS,LAND REGISTRY ECOM CCC,3,0,3,Homelessness,Government services
Buckinghamshire Council ,31.12.2023,14.12.2023,Deputy Chief Executive,Communities - DCE,WWW.ARGOS.CO.UK,591.6,118.32,709.92,Other Personal Needs,Department stores
Buckinghamshire Council ,31.12.2023,14.12.2023,Deputy Chief Executive,Communities - DCE,WWW.ARGOS.CO.UK,0.03,0,0.03,Other Personal Needs,Department stores
Buckinghamshire Council ,31.12.2023,14.12.2023,Deputy Chief Executive,Communities - DCE,WWW.ARGOS.CO.UK,222.45,44.49,266.94,Other Personal Needs,Department stores
Buckinghamshire Council ,31.12.2023,14.12.2023,Deputy Chief Executive,Communities - DCE,WWW.ARGOS.CO.UK,0.01,0,0.01,Other Personal Needs,Department stores
Buckinghamshire Council ,31.12.2023,14.12.2023,Deputy Chief Executive,Communities - DCE,AO RETAIL LIMITED,743.33,148.67,892,Other Personal Needs,Household appliance stores
Buckinghamshire Council ,31.12.2023,14.12.2023,Deputy Chief Executive,Communities - DCE,AO RETAIL LIMITED,855.83,171.17,"1,027.00",Other Personal Needs,Household appliance stores
Buckinghamshire Council ,31.12.2023,14.12.2023,Deputy Chief Executive,Communities - DCE,AO RETAIL LIMITED,755.83,151.17,907,Other Personal Needs,Household appliance stores
Buckinghamshire Council ,31.12.2023,14.12.2023,Deputy Chief Executive,Communities - DCE,AO RETAIL LIMITED,357.5,71.5,429,Other Personal Needs,Household appliance stores
Buckinghamshire Council ,31.12.2023,14.12.2023,Deputy Chief Executive,Communities - DCE,A E PRENTICE,148.57,7.43,156,Other Personal Needs,Fuel dealers
Buckinghamshire Council ,31.12.2023,14.12.2023,Children's Services,Education & Childrens Services - CS Dir,AMZNMKTPLACE,34.67,0,34.67,Leaving Care - Grants for Care Leavers,Miscellaneous retail
Buckinghamshire Council ,31.12.2023,14.12.2023,Children's Services,Education & Childrens Services - CS Dir,AMZNMKTPLACE,12.15,0,12.15,Leaving Care - Grants for Care Leavers,Miscellaneous retail
Buckinghamshire Council ,31.12.2023,14.12.2023,Children's Services,Education & Childrens Services - CS Dir,AMZNMKTPLACE,12.99,0,12.99,Leaving Care - Grants for Care Leavers,Miscellaneous retail
Buckinghamshire Council ,31.12.2023,14.12.2023,Children's Services,Education & Childrens Services - CS Dir,AMZNMKTPLACE,22.63,0,22.63,Leaving Care - Grants for Care Leavers,Miscellaneous retail
Buckinghamshire Council ,31.12.2023,14.12.2023,Children's Services,Education & Childrens Services - CS Dir,DUNELM SOFTFURNISHINGS,115,0,115,Leaving Care - Grants for Care Leavers,Furniture & home furnishing
Buckinghamshire Council ,31.12.2023,14.12.2023,Children's Services,Education & Childrens Services - CS Dir,IKEA LTD SHOP ONLINE,205,0,205,Leaving Care - Grants for Care Leavers,Furniture & home furnishing
Buckinghamshire Council ,31.12.2023,14.12.2023,Children's Services,Education & Childrens Services - CS Dir,WWW.BEDS.CO.UK,519,0,519,Leaving Care - Grants for Care Leavers,Furniture & home furnishing
Buckinghamshire Council ,31.12.2023,14.12.2023,Children's Services,Education & Childrens Services - CS Dir,SP CARPET WAREHOUSE,225.63,0,225.63,Leaving Care - Grants for Care Leavers,Floor covering stores
Buckinghamshire Council ,31.12.2023,14.12.2023,Children's Services,Education & Childrens Services - CS Dir,AMAZON PRIME,8.99,0,8.99,Stationery & Office Supplies,Continuous subscriptions
Buckinghamshire Council ,31.12.2023,14.12.2023,Children's Services,Education & Childrens Services - CS Dir,AMZNMKTPLACE,34.95,0,34.95,Other Equipment and Materials,Miscellaneous retail
Buckinghamshire Council ,31.12.2023,14.12.2023,Children's Services,Education & Childrens Services - CS Dir,AMZNMKTPLACE,139.97,0,139.97,Other Personal Needs,Miscellaneous retail
Buckinghamshire Council ,31.12.2023,14.12.2023,"Planning, Growth & Sustainability",Housing & Homelessness & Regulatory PGS,BUCKINGHAMSHIRE COUNCIL,11,0,11,Burial Costs,Government services
Buckinghamshire Council ,31.12.2023,14.12.2023,Children's Services,Education & Childrens Services - CS Dir,ALLIED VEHICLES,"1,155.00",0,"1,155.00",Sec 20/31: Financial Assistance,Automobile dealers - new & used
Buckinghamshire Council ,31.12.2023,14.12.2023,Resources,AH&R - Res Dir,AMZNMKTPLACE,43.59,0,43.59,IT Equipment Purchase,Miscellaneous retail
Buckinghamshire Council ,31.12.2023,14.12.2023,Deputy Chief Executive,Communities - DCE,WWW.ARGOS.CO.UK,53.29,10.66,63.95,Other Personal Needs,Department stores
Buckinghamshire Council ,31.12.2023,14.12.2023,Communities,Culture & Leisure - Communities Dir,TAYNA LTD,42.94,8.6,51.53,"Workshop - Materials,Tools & Equipment",Automotive parts & accessories
Buckinghamshire Council ,31.12.2023,14.12.2023,Communities,Culture & Leisure - Communities Dir,EBAY O*08-10930-26147,15.8,3.16,18.96,"Workshop - Materials,Tools & Equipment",Department stores
Buckinghamshire Council ,31.12.2023,14.12.2023,Communities,Culture & Leisure - Communities Dir,EBAY O*08-10930-26147,0.02,0,0.02,"Workshop - Materials,Tools & Equipment",Department stores
Buckinghamshire Council ,31.12.2023,14.12.2023,Communities,Culture & Leisure - Communities Dir,AMZNMKTPLACE,22.49,4.5,26.99,"Workshop - Materials,Tools & Equipment",Miscellaneous retail
Buckinghamshire Council ,31.12.2023,14.12.2023,Children's Services,Education & Childrens Services - CS Dir,AMZNMKTPLACE,-9.99,0,-9.99,Consumable Supplies,Miscellaneous retail
Buckinghamshire Council ,31.12.2023,14.12.2023,Children's Services,Education & Childrens Services - CS Dir,AMZNMKTPLACE,-14.98,0,-14.98,Consumable Supplies,Miscellaneous retail
Buckinghamshire Council ,31.12.2023,14.12.2023,Children's Services,Education & Childrens Services - CS Dir,AMAZON* 204-1364866-87,150,0,150,Course Fees & Post Entry Training,Misc. general merchandise
Buckinghamshire Council ,31.12.2023,14.12.2023,Children's Services,Education & Childrens Services - CS Dir,POUNDLAND LTD - 1301,56,0,56,Activities & General Recreation,Discount stores
Buckinghamshire Council ,31.12.2023,14.12.2023,"Planning, Growth & Sustainability",AH&R - PGS Dir,TOOLSTATION LTD,23.97,0,23.97,General Repairs & Maintenance,Timber & building supplies
Buckinghamshire Council ,31.12.2023,14.12.2023,Adults and Health,Communities - Adults & Health,SUMUP  *THE COFFEE SNOBS,150,0,150,Project Funding,Miscellaneous retail
Buckinghamshire Council ,31.12.2023,14.12.2023,Communities,Culture & Leisure - Communities Dir,EVENTBRITE.COM ORG FEE,129,0,129,Events Expenditure,Computer software stores
Buckinghamshire Council ,31.12.2023,14.12.2023,Adults and Health,Health & Wellbeing - Adults & Health Dir,BKG*HOTEL AT BOOKING.C,538.65,0,538.65,Other Short Term Support,Travel agencies
Buckinghamshire Council ,31.12.2023,14.12.2023,Children's Services,Education & Childrens Services - CS Dir,OPUZ AYLESBURY,100,0,100,Activities & General Recreation,Restaurants
Buckinghamshire Council ,31.12.2023,14.12.2023,Children's Services,Education & Childrens Services - CS Dir,CARD FACTORY,32.68,0,32.68,Awaiting Coding,"Gift, card & novelty shops"
Buckinghamshire Council ,31.12.2023,14.12.2023,Children's Services,Education & Childrens Services - CS Dir,THE WORKS,23,0,23,Awaiting Coding,Discount stores
Buckinghamshire Council ,31.12.2023,14.12.2023,Deputy Chief Executive,AH&R- DCE Dir,WWW.ARGOS.CO.UK,8.99,0,8.99,Stationery & Office Supplies,Department stores
Buckinghamshire Council ,31.12.2023,14.12.2023,Communities,ommunities - Trust Accounts,WICKES SLOUGH,97.38,0,97.38,General Repairs & Maintenance,Timber & building supplies
Buckinghamshire Council ,31.12.2023,14.12.2023,Resources,AH&R - Res Dir,Mailchimp,55.67,0,55.67,Awaiting Coding,
Buckinghamshire Council ,31.12.2023,14.12.2023,Communities,Climate Change & Environment - Community,WATLING JCB LTD LEIGHT,107.22,0,107.22,Repair & Maint of Vehicles & Plant,"Misc. automotive, aircraft & farm equipment"
Buckinghamshire Council ,31.12.2023,14.12.2023,Communities,Transport - Communities Dir,Pearces Hardware,39.99,0,39.99,Awaiting Coding,Hardware stores
Buckinghamshire Council ,31.12.2023,14.12.2023,Children's Services,Education & Childrens Services - CS Dir,TRAVELODGE GB0000,87.45,0,87.45,Sec 17: Transport,Travelodge
Buckinghamshire Council ,31.12.2023,14.12.2023,Adults and Health,Health & Wellbeing - Adults & Health Dir,SAINSBURYS S/MKTS,94.59,0,94.59,Awaiting Coding,Grocery stores
Buckinghamshire Council ,31.12.2023,14.12.2023,Adults and Health,Health & Wellbeing - Adults & Health Dir,Thara Stores Ltd,8.98,0,8.98,Awaiting Coding,Grocery stores
Buckinghamshire Council ,31.12.2023,14.12.2023,Children's Services,Education & Childrens Services - CS Dir,TESCO GIFT CARD,40,0,40,Sec 17: Financial Assistance One Off,Grocery stores
Buckinghamshire Council ,31.12.2023,14.12.2023,Children's Services,Education & Childrens Services - CS Dir,NEALES TAXIS LTD,580,116,696,Sec 20/31: Transport,Taxicabs & limousines
Buckinghamshire Council ,31.12.2023,13.12.2023,Children's Services,Education & Childrens Services - CS Dir,AMZNMKTPLACE,34.42,0,34.42,Sec 17: Financial Assistance,Miscellaneous retail
Buckinghamshire Council ,31.12.2023,13.12.2023,Children's Services,Education & Childrens Services - CS Dir,AMZNMKTPLACE,62.99,0,62.99,Leaving Care - Grants for Care Leavers,Miscellaneous retail
Buckinghamshire Council ,31.12.2023,13.12.2023,Resources,AH&R - Res Dir,OPTIMAL WORKSHOP,204.9,0,204.9,Computer Consumables,Computer software stores
Buckinghamshire Council ,31.12.2023,13.12.2023,Children's Services,Education & Childrens Services - CS Dir,CABCARD SERVICES UK,330.3,0,330.3,Sec 20/31: Transport,Taxicabs & limousines
Buckinghamshire Council ,31.12.2023,13.12.2023,Adults and Health,Health & Wellbeing - Adults & Health Dir,ASDA SUPERSTORE,5.8,0,5.8,General Provisions (Food),Grocery stores
Buckinghamshire Council ,31.12.2023,13.12.2023,"Planning, Growth & Sustainability",Housing & Homelessness & Regulatory PGS,LAND REGISTRY ECOM CCC,3,0,3,Homelessness,Government services
Buckinghamshire Council ,31.12.2023,13.12.2023,Children's Services,Education & Childrens Services - CS Dir,AO RETAIL LIMITED,"1,147.00",0,"1,147.00",Leaving Care - Grants for Care Leavers,Household appliance stores
Buckinghamshire Council ,31.12.2023,13.12.2023,Children's Services,Education & Childrens Services - CS Dir,WWW.ARGOS.CO.UK,103.95,0,103.95,Leaving Care - Grants for Care Leavers,Department stores
Buckinghamshire Council ,31.12.2023,13.12.2023,Children's Services,Education & Childrens Services - CS Dir,CURRYS ONLINE,99.99,0,99.99,Leaving Care - Grants for Care Leavers,Electronics shops
Buckinghamshire Council ,31.12.2023,13.12.2023,Communities,Culture & Leisure - Communities Dir,AMZNMKTPLACE,9.8,1.96,11.76,Protective Clothing & Uniforms,Miscellaneous retail
Buckinghamshire Council ,31.12.2023,13.12.2023,Communities,Culture & Leisure - Communities Dir,AMZNMKTPLACE,59.86,0,59.86,Protective Clothing & Uniforms,Miscellaneous retail
Buckinghamshire Council ,31.12.2023,13.12.2023,Children's Services,Education & Childrens Services - CS Dir,DIRECT CARS,140,0,140,Sec 20/31: Transport,Taxicabs & limousines
Buckinghamshire Council ,31.12.2023,13.12.2023,"Planning, Growth & Sustainability",Housing & Homelessness & Regulatory PGS,LAND REGISTRY ECOM CCC,3,0,3,Homelessness,Government services
Buckinghamshire Council ,31.12.2023,13.12.2023,Communities,Housing & Homelessness & Regulatory Comm,APEX FASTENERS LIMITED,59.16,0,59.16,Miscellaneous (Other)  Expenses,Hardware stores
Buckinghamshire Council ,31.12.2023,13.12.2023,Deputy Chief Executive,AH&R- DCE Dir,ONEDIRECT UK,104.38,0,104.38,Stationery & Office Supplies,
Buckinghamshire Council ,31.12.2023,13.12.2023,Adults and Health,Health & Wellbeing - Adults & Health Dir,AMZNMKTPLACE,14.15,2.83,16.98,Health & Safety Supplies & Services,Miscellaneous retail
Buckinghamshire Council ,31.12.2023,13.12.2023,Children's Services,Education & Childrens Services - CS Dir,AMZNMKTPLACE,103.32,0,103.32,Consumable Supplies,Miscellaneous retail
Buckinghamshire Council ,31.12.2023,13.12.2023,Children's Services,Education & Childrens Services - CS Dir,AMZNMKTPLACE,148.82,0,148.82,Consumable Supplies,Miscellaneous retail
Buckinghamshire Council ,31.12.2023,13.12.2023,Children's Services,Education & Childrens Services - CS Dir,OFSTED INTERNET,910,0,910,Professional Services (non curriculum) - External,Government services
Buckinghamshire Council ,31.12.2023,13.12.2023,Adults and Health,Communities - Adults & Health,WICKES CHESHAM,8.25,0,8.25,Project Funding,Timber & building supplies
Buckinghamshire Council ,31.12.2023,13.12.2023,Children's Services,Education & Childrens Services - CS Dir,AMAZON.CO.UK,49.99,0,49.99,Equipment (including storage),Direct sales companies
Buckinghamshire Council ,31.12.2023,13.12.2023,"Planning, Growth & Sustainability",Planning & Regeneration - PGS,AMZNMktplace,-6.39,0,-6.39,Awaiting Coding,Miscellaneous retail
Buckinghamshire Council ,31.12.2023,13.12.2023,Children's Services,Education & Childrens Services - CS Dir,AMZNMKTPLACE,40.14,0,40.14,"Books, Records, Films & Oth Publications",Miscellaneous retail
Buckinghamshire Council ,31.12.2023,13.12.2023,Children's Services,Education & Childrens Services - CS Dir,NEALES TAXIS LTD,"1,176.00",0,"1,176.00",Sec 20/31: Transport,Taxicabs & limousines
Buckinghamshire Council ,31.12.2023,13.12.2023,Adults and Health,Health & Wellbeing - Adults & Health Dir,SUMUP  *RISBOROUGH CAR,420,0,420,Staff Travelling Expenses,Taxicabs & limousines
Buckinghamshire Council ,31.12.2023,13.12.2023,Adults and Health,Health & Wellbeing - Adults & Health Dir,SUMUP  *RISBOROUGH CAR,336,0,336,Staff Travelling Expenses,Taxicabs & limousines
Buckinghamshire Council ,31.12.2023,13.12.2023,Children's Services,Education & Childrens Services - CS Dir,KUZZU TURKISH BAR AND GRI,140,0,140,Activities & General Recreation,Restaurants
Buckinghamshire Council ,31.12.2023,13.12.2023,"Planning, Growth & Sustainability",AH&R - PGS Dir,ASDA SUPERSTORE,8,0,8,General Repairs & Maintenance,Grocery stores
Buckinghamshire Council ,31.12.2023,13.12.2023,"Planning, Growth & Sustainability",AH&R - PGS Dir,ASDA SUPERSTORE,14.5,0,14.5,General Provisions (Food),Grocery stores
Buckinghamshire Council ,31.12.2023,13.12.2023,Communities,artnerships - Communities,TRAINLINE,23.3,0,23.3,Staff Travelling Expenses,Passenger railways
Buckinghamshire Council ,31.12.2023,13.12.2023,"Planning, Growth & Sustainability",Climate Change & Environment - PGS,AMZNMKTPLACE,124.95,24.99,149.94,IT Equipment Purchase,Miscellaneous retail
Buckinghamshire Council ,31.12.2023,13.12.2023,Children's Services,Education & Childrens Services - CS Dir,WM MORRISONS STORE,82.19,0,82.19,Support for Foster Carers,Grocery stores
Buckinghamshire Council ,31.12.2023,13.12.2023,Children's Services,Education & Childrens Services - CS Dir,WM MORRISONS STORE,27.5,0,27.5,Support for Foster Carers,Grocery stores
Buckinghamshire Council ,31.12.2023,13.12.2023,Children's Services,Education & Childrens Services - CS Dir,SP PARKEM.CO.UK,316.29,0,316.29,Support for Foster Carers,Computer software stores
Buckinghamshire Council ,31.12.2023,13.12.2023,Children's Services,Education & Childrens Services - CS Dir,AMAZON.CO.UK,49.99,0,49.99,Support for Foster Carers,Direct sales companies
Buckinghamshire Council ,31.12.2023,13.12.2023,Children's Services,Education & Childrens Services - CS Dir,ASDA  STORES 4396,16.3,0,16.3,General Provisions (Food),Grocery stores
Buckinghamshire Council ,31.12.2023,13.12.2023,Children's Services,Education & Childrens Services - CS Dir,HOBBYCRAFT,5.83,1.17,7,Educational Equipment,Art & craft shops
Buckinghamshire Council ,31.12.2023,13.12.2023,Deputy Chief Executive,AH&R- DCE Dir,COUNTYCOUNCILSNETWORK,665,133,798,Members Training - Non Grant Earning,Membership organisations
Buckinghamshire Council ,31.12.2023,13.12.2023,Resources,AH&R - Res Dir,AMZNMKTPLACE,19.5,0,19.5,Leaving Care - Grants for Care Leavers,Miscellaneous retail
Buckinghamshire Council ,31.12.2023,13.12.2023,Children's Services,Education & Childrens Services - CS Dir,HOME BARGAINS,45.27,0,45.27,Other Equipment and Materials,Misc. general merchandise
Buckinghamshire Council ,31.12.2023,13.12.2023,Resources,AH&R - Res Dir,AMZNMktplace,-349,0,-349,Awaiting Coding,Miscellaneous retail
Buckinghamshire Council ,31.12.2023,13.12.2023,Communities,ommunities - Trust Accounts,BOOKER LTD - 38531354,586.92,0,586.92,Awaiting Coding,Grocery stores
Buckinghamshire Council ,31.12.2023,13.12.2023,"Planning, Growth & Sustainability",Planning & Regeneration - PGS,UBR* PENDING.UBER.COM,7.94,0,7.94,Staff Travelling Expenses,Taxicabs & limousines
Buckinghamshire Council ,31.12.2023,13.12.2023,Resources,AH&R - Res Dir,CLOUDFLARE,210.66,0,210.66,Computer Consumables,Computer software stores
Buckinghamshire Council ,31.12.2023,13.12.2023,Communities,artnerships - Communities,BT BUSINESS BILL,64,12.8,76.8,Telephones,Phone services
Buckinghamshire Council ,31.12.2023,13.12.2023,Communities,artnerships - Communities,BT BUSINESS BILL,0.01,0,0.01,Telephones,Phone services
Buckinghamshire Council ,31.12.2023,13.12.2023,Communities,Climate Change & Environment - Community,PAYPAL,200,0,200,Advertising,Advertising services
Buckinghamshire Council ,31.12.2023,13.12.2023,Children's Services,Education & Childrens Services - CS Dir,PAYPAL,53.83,10.77,64.6,Educational Equipment,Misc. home furnishing
Buckinghamshire Council ,31.12.2023,13.12.2023,Children's Services,Education & Childrens Services - CS Dir,CURRYS ONLINE,-99.99,0,-99.99,Leaving Care - Grants for Care Leavers,Electronics shops
Buckinghamshire Council ,31.12.2023,12.12.2023,Children's Services,Education & Childrens Services - CS Dir,TRAINLINE,-106.6,0,-106.6,Sec 20/31: Supp for Contact,Passenger railways
Buckinghamshire Council ,31.12.2023,12.12.2023,Adults and Health,Health & Wellbeing - Adults & Health Dir,TESCO SUBSCRIPTION,7.99,0,7.99,General Provisions (Food),Continuous subscriptions
Buckinghamshire Council ,31.12.2023,12.12.2023,"Planning, Growth & Sustainability",Housing & Homelessness & Regulatory PGS,ARCO LIMITED,26.99,5.4,32.39,Administrative Equipment & Tools,Misc Industrial supplies
Buckinghamshire Council ,31.12.2023,12.12.2023,"Planning, Growth & Sustainability",Housing & Homelessness & Regulatory PGS,ARCO LIMITED,119.68,23.94,143.62,Administrative Equipment & Tools,Misc Industrial supplies
Buckinghamshire Council ,31.12.2023,12.12.2023,"Planning, Growth & Sustainability",Housing & Homelessness & Regulatory PGS,AMZNMKTPLACE,30.85,6.17,37.02,Administrative Equipment & Tools,Miscellaneous retail
Buckinghamshire Council ,31.12.2023,12.12.2023,"Planning, Growth & Sustainability",Housing & Homelessness & Regulatory PGS,AMZNMKTPLACE,12.95,0,12.95,Administrative Equipment & Tools,Miscellaneous retail
Buckinghamshire Council ,31.12.2023,12.12.2023,"Planning, Growth & Sustainability",Planning & Regeneration - PGS,TEXTANYWHERE,75.6,0,75.6,Computer Consumables,Computer software stores
Buckinghamshire Council ,31.12.2023,12.12.2023,Children's Services,Education & Childrens Services - CS Dir,TRAINLINE,119.09,0,119.09,Sec 20/31: Supp for Contact,Passenger railways
Buckinghamshire Council ,31.12.2023,12.12.2023,Children's Services,Education & Childrens Services - CS Dir,TRAINLINE,203.49,0,203.49,Sec 20/31: Supp for Contact,Passenger railways
Buckinghamshire Council ,31.12.2023,12.12.2023,"Planning, Growth & Sustainability",Housing & Homelessness & Regulatory PGS,WWW.SCREWFIX.COM,49.98,0,49.98,Administrative Equipment & Tools,Timber & building supplies
Buckinghamshire Council ,31.12.2023,12.12.2023,Communities,Culture & Leisure - Communities Dir,TESCO STORES 2041,23.85,0,23.85,Events Expenditure,Grocery stores
Buckinghamshire Council ,31.12.2023,12.12.2023,Resources,AH&R - Res Dir,TESCO STORES 2041,67.35,0,67.35,Awaiting Coding,Grocery stores
Buckinghamshire Council ,31.12.2023,12.12.2023,Deputy Chief Executive,Communities - DCE,WWW.ARGOS.CO.UK,1.5,0,1.5,Other Personal Needs,Department stores
Buckinghamshire Council ,31.12.2023,12.12.2023,Deputy Chief Executive,Communities - DCE,WWW.ARGOS.CO.UK,266.95,0,266.95,Other Personal Needs,Department stores
Buckinghamshire Council ,31.12.2023,12.12.2023,Deputy Chief Executive,Communities - DCE,AO RETAIL LIMITED,448.33,89.67,538,Other Personal Needs,Household appliance stores
Buckinghamshire Council ,31.12.2023,12.12.2023,Deputy Chief Executive,Communities - DCE,AO RETAIL LIMITED,485.83,97.17,583,Other Personal Needs,Household appliance stores
Buckinghamshire Council ,31.12.2023,12.12.2023,Children's Services,Education & Childrens Services - CS Dir,WF *UK3968044804,394.97,0,394.97,Leaving Care - Grants for Care Leavers,Furniture & home furnishing
Buckinghamshire Council ,31.12.2023,12.12.2023,Communities,Culture & Leisure - Communities Dir,MOL*WORLD OF POWER.CO.UK,38.92,7.79,46.71,"Workshop - Materials,Tools & Equipment",Lawn & garden supply/nursery
Buckinghamshire Council ,31.12.2023,12.12.2023,Communities,Culture & Leisure - Communities Dir,WWW.SCREWFIX.COM,87.42,17.49,104.91,Protective Clothing & Uniforms,Timber & building supplies
Buckinghamshire Council ,31.12.2023,12.12.2023,Children's Services,Education & Childrens Services - CS Dir,CURRYS BUSINESS,399.15,79.83,478.98,Computer Consumables,Computer software stores
Buckinghamshire Council ,31.12.2023,12.12.2023,Children's Services,Education & Childrens Services - CS Dir,CURRYS BUSINESS,0.01,0,0.01,Computer Consumables,Computer software stores
Buckinghamshire Council ,31.12.2023,12.12.2023,Deputy Chief Executive,Leader - DCE,SAINSBURY S S/MKTS,6.13,0,6.13,General Provisions (Food),Grocery stores
Buckinghamshire Council ,31.12.2023,12.12.2023,Deputy Chief Executive,Leader - DCE,NEW YORK DELI GATEHOUSE,2.5,0,2.5,General Provisions (Food),Restaurants
Buckinghamshire Council ,31.12.2023,12.12.2023,Children's Services,Education & Childrens Services - CS Dir,ONE BELOW,5,0,5,Miscellaneous (Other)  Expenses,Grocery stores
Buckinghamshire Council ,31.12.2023,12.12.2023,Resources,AH&R - Res Dir,New York Deli (Aylesbury),120,0,120,Subsistence,Restaurants
Buckinghamshire Council ,31.12.2023,12.12.2023,"Planning, Growth & Sustainability",AH&R - PGS Dir,BOOKER LTD - 38534944,8.49,0,8.49,General Provisions (Food),Grocery stores
Buckinghamshire Council ,31.12.2023,12.12.2023,"Planning, Growth & Sustainability",AH&R - PGS Dir,TESCO STORES 2020,8.7,0,8.7,Purchase.of Refreshments and Food,Grocery stores
Buckinghamshire Council ,31.12.2023,12.12.2023,Children's Services,Education & Childrens Services - CS Dir,MAILCHIMP,249.25,0,249.25,Service Development,
Buckinghamshire Council ,31.12.2023,12.12.2023,Communities,Housing & Homelessness & Regulatory Comm,WATERFRONT MANUFACTURI,29.08,0,29.08,Protective Clothing & Uniforms,Uniforms & commercial clothing
Buckinghamshire Council ,31.12.2023,12.12.2023,Children's Services,Education & Childrens Services - CS Dir,SAINSBURYS SMKTS,39,0,39,Educational Equipment,Grocery stores
Buckinghamshire Council ,31.12.2023,12.12.2023,Children's Services,Education & Childrens Services - CS Dir,SAINSBURYS SMKTS,39,0,39,Educational Equipment,Grocery stores
Buckinghamshire Council ,31.12.2023,12.12.2023,Children's Services,Education & Childrens Services - CS Dir,SAINSBURYS SMKTS,36,0,36,Educational Equipment,Grocery stores
Buckinghamshire Council ,31.12.2023,12.12.2023,Children's Services,Education & Childrens Services - CS Dir,LEBARA MOBILE LIMITED,25,0,25,Telephones,Phone services
Buckinghamshire Council ,31.12.2023,12.12.2023,Children's Services,artnerships - Children's Services,LIDL GB OAKFIELD ROAD,3.24,0,3.24,"Courses, Conference and Seminar Fees",Grocery stores
Buckinghamshire Council ,31.12.2023,12.12.2023,Communities,Culture & Leisure - Communities Dir,B & Q 1305,18.32,3.67,21.99,Administrative Equipment & Tools,Home supply warehouse stores
Buckinghamshire Council ,31.12.2023,12.12.2023,Children's Services,Education & Childrens Services - CS Dir,LAPTOPS DIRECT,109.93,0,109.93,Equipment for Training and Mats for Ins.,Electronics shops
Buckinghamshire Council ,31.12.2023,12.12.2023,Children's Services,Education & Childrens Services - CS Dir,AMZNMKTPLACE,-1,0,-1,Activities & General Recreation,Miscellaneous retail
Buckinghamshire Council ,31.12.2023,12.12.2023,Deputy Chief Executive,AH&R- DCE Dir,AMZNMKTPLACE,13.48,2.7,16.18,Miscellaneous (Other)  Expenses,Miscellaneous retail
Buckinghamshire Council ,31.12.2023,12.12.2023,"Planning, Growth & Sustainability",Housing & Homelessness & Regulatory PGS,ABC FOOD LAW LTD,81.6,0,81.6,"Courses, Conference and Seminar Fees",Computer software stores
Buckinghamshire Council ,31.12.2023,12.12.2023,"Planning, Growth & Sustainability",Housing & Homelessness & Regulatory PGS,AMAZON.CO.UK,49.99,0,49.99,Administrative Equipment & Tools,Direct sales companies
Buckinghamshire Council ,31.12.2023,12.12.2023,"Planning, Growth & Sustainability",Housing & Homelessness & Regulatory PGS,CURRYS ONLINE,379,0,379,Stationery & Office Supplies,Electronics shops
Buckinghamshire Council ,31.12.2023,12.12.2023,Communities,Climate Change & Environment - Community,POST OFFICE COUNTER,7.35,0,7.35,General Postage,Postal services
Buckinghamshire Council ,31.12.2023,12.12.2023,Adults and Health,Health & Wellbeing - Adults & Health Dir,AMZNMKTPLACE,32.4,6.48,38.88,Health & Safety Supplies & Services,Miscellaneous retail
Buckinghamshire Council ,31.12.2023,12.12.2023,Adults and Health,Health & Wellbeing - Adults & Health Dir,AMZNMKTPLACE,9.99,2,11.99,Activities & General Recreation,Miscellaneous retail
Buckinghamshire Council ,31.12.2023,12.12.2023,Children's Services,Education & Childrens Services - CS Dir,BUCKINGHAMSHIRE CNCL,33,0,33,Sec 20/31: Financial Assistance,Government services
Buckinghamshire Council ,31.12.2023,12.12.2023,Communities,ommunities - Trading Accounts,DVLA VEHICLE TAX,320,0,320,Vehicle Taxation Costs,Tax payments
Buckinghamshire Council ,31.12.2023,12.12.2023,Children's Services,Education & Childrens Services - CS Dir,BUCKINGHAM HOTELS,"1,575.00",315,"1,890.00",Sec 17: Accommodation,"Hotels, motels & resorts"
Buckinghamshire Council ,31.12.2023,12.12.2023,Children's Services,Education & Childrens Services - CS Dir,BUCKINGHAM HOTELS,"1,575.00",315,"1,890.00",Sec 17: Accommodation,"Hotels, motels & resorts"
Buckinghamshire Council ,31.12.2023,12.12.2023,Children's Services,Education & Childrens Services - CS Dir,BUCKINGHAM HOTELS,"1,575.00",315,"1,890.00",Sec 17: Accommodation,"Hotels, motels & resorts"
Buckinghamshire Council ,31.12.2023,12.12.2023,Children's Services,Education & Childrens Services - CS Dir,BUCKINGHAM HOTELS,"1,575.00",315,"1,890.00",Sec 17: Accommodation,"Hotels, motels & resorts"
Buckinghamshire Council ,31.12.2023,12.12.2023,Adults and Health,Health & Wellbeing - Adults & Health Dir,WM MORRISONS STORE,27.13,0,27.13,General Provisions (Food),Grocery stores
Buckinghamshire Council ,31.12.2023,12.12.2023,Deputy Chief Executive,AH&R- DCE Dir,PAYPAL,119,0,119,Awaiting Coding,Variety stores
Buckinghamshire Council ,31.12.2023,12.12.2023,"Planning, Growth & Sustainability",Housing & Homelessness & Regulatory PGS,ARCO LIMITED,67.44,13.49,80.93,Administrative Equipment & Tools,Misc Industrial supplies
Buckinghamshire Council ,31.12.2023,12.12.2023,Deputy Chief Executive,Communities - DCE,HTTP://WWW.NOLANOILS.C,364.75,18.24,382.99,Other Personal Needs,Fuel dealers
Buckinghamshire Council ,31.12.2023,11.12.2023,Children's Services,Education & Childrens Services - CS Dir,LYNKPAY* 001 TAXIS,231,0,231,Sec 20/31: Transport,
Buckinghamshire Council ,31.12.2023,11.12.2023,Children's Services,Education & Childrens Services - CS Dir,LYNKPAY* 001 TAXIS,68.25,0,68.25,Sec 20/31: Transport,
Buckinghamshire Council ,31.12.2023,11.12.2023,Children's Services,Education & Childrens Services - CS Dir,CABCARD SERVICES UK,440.3,0,440.3,Sec 20/31: Transport,Taxicabs & limousines
Buckinghamshire Council ,31.12.2023,11.12.2023,Children's Services,Education & Childrens Services - CS Dir,SUMUP  *CABS4U,81.6,0,81.6,Sec 20/31: Transport,Taxicabs & limousines
Buckinghamshire Council ,31.12.2023,11.12.2023,"Planning, Growth & Sustainability",Climate Change & Environment - PGS,WEX PHOTO,73.99,0,73.99,Advertising,Camera & photographic supply shop
Buckinghamshire Council ,31.12.2023,11.12.2023,"Planning, Growth & Sustainability",Climate Change & Environment - PGS,AMZNMKTPLACE,253.29,0,253.29,Advertising,Miscellaneous retail
Buckinghamshire Council ,31.12.2023,11.12.2023,Deputy Chief Executive,Communities - DCE,AO RETAIL LIMITED,724.16,144.84,869,Other Personal Needs,Household appliance stores
Buckinghamshire Council ,31.12.2023,11.12.2023,Children's Services,Education & Childrens Services - CS Dir,TESCO STORES 2038,146.25,0,146.25,General Provisions (Food),Grocery stores
Buckinghamshire Council ,31.12.2023,11.12.2023,Resources,AH&R - Res Dir,POST OFFICE COUNTER,40,0,40,General Postage,Postal services
Buckinghamshire Council ,31.12.2023,11.12.2023,Deputy Chief Executive,Leader - DCE,TFL TRAVEL CH,5.5,0,5.5,Staff Travelling Expenses,Local commuter transport
Buckinghamshire Council ,31.12.2023,11.12.2023,Deputy Chief Executive,Leader - DCE,SMART PARKING (E),10.5,0,10.5,Staff Travelling Expenses,Car parking & garages
Buckinghamshire Council ,31.12.2023,11.12.2023,"Planning, Growth & Sustainability",AH&R - PGS Dir,ICELAND,13.05,0,13.05,General Provisions (Food),Grocery stores
Buckinghamshire Council ,31.12.2023,11.12.2023,"Planning, Growth & Sustainability",Housing & Homelessness & Regulatory PGS,LAND REGISTRY ECOM CCC,3,0,3,Homelessness,Government services
Buckinghamshire Council ,31.12.2023,11.12.2023,"Planning, Growth & Sustainability",Housing & Homelessness & Regulatory PGS,LAND REGISTRY ECOM CCC,3,0,3,Homelessness,Government services
Buckinghamshire Council ,31.12.2023,11.12.2023,"Planning, Growth & Sustainability",Housing & Homelessness & Regulatory PGS,LAND REGISTRY ECOM CCC,3,0,3,Homelessness,Government services
Buckinghamshire Council ,31.12.2023,11.12.2023,Adults and Health,Health & Wellbeing - Adults & Health Dir,AMZNMKTPLACE,21.97,0,21.97,Health & Safety Supplies & Services,Miscellaneous retail
Buckinghamshire Council ,31.12.2023,11.12.2023,Adults and Health,Health & Wellbeing - Adults & Health Dir,AMZNMKTPLACE,13.3,2.66,15.96,Health & Safety Supplies & Services,Miscellaneous retail
Buckinghamshire Council ,31.12.2023,11.12.2023,Adults and Health,Health & Wellbeing - Adults & Health Dir,AMZNMKTPLACE,0.02,0,0.02,Health & Safety Supplies & Services,Miscellaneous retail
Buckinghamshire Council ,31.12.2023,11.12.2023,Communities,Housing & Homelessness & Regulatory Comm,AMZNMKTPLACE,16.98,0,16.98,General Repairs & Maintenance,Miscellaneous retail
Buckinghamshire Council ,31.12.2023,11.12.2023,Children's Services,Education & Childrens Services - CS Dir,DUNELM SOFTFURNISHINGS,24.5,0,24.5,Educational Equipment,Furniture & home furnishing
Buckinghamshire Council ,31.12.2023,11.12.2023,Children's Services,Education & Childrens Services - CS Dir,SOPRA STERIA LIMITED UKVC,223,0,223,Sec 20/31: Specialist Services,Government services
Buckinghamshire Council ,31.12.2023,11.12.2023,Children's Services,Education & Childrens Services - CS Dir,DOMINOS PIZZA 28091,86.91,0,86.91,Equipment (including storage),Fast food restaurants
Buckinghamshire Council ,31.12.2023,11.12.2023,Children's Services,Education & Childrens Services - CS Dir,SAINSBURYS S/MKTS,1.25,0,1.25,Equipment (including storage),Grocery stores
Buckinghamshire Council ,31.12.2023,11.12.2023,Children's Services,Education & Childrens Services - CS Dir,IKEA LTD SHOP ONLINE,205,0,205,Leaving Care - Grants for Care Leavers,Furniture & home furnishing
Buckinghamshire Council ,31.12.2023,11.12.2023,Children's Services,Education & Childrens Services - CS Dir,AMZNMKTPLACE,8.29,0,8.29,Support for Foster Carers,Miscellaneous retail
Buckinghamshire Council ,31.12.2023,11.12.2023,Resources,AH&R - Res Dir,C2E874600049H UKVI,"3,239.00",0,"3,239.00",Professional Services (non curriculum) - External,Government services
Buckinghamshire Council ,31.12.2023,11.12.2023,"Planning, Growth & Sustainability",AH&R - PGS Dir,FAST KEY SERVICES LIMITED,6.93,1.39,8.32,General Repairs & Maintenance,Misc business services
Buckinghamshire Council ,31.12.2023,11.12.2023,Children's Services,Education & Childrens Services - CS Dir,AMZNMKTPLACE,256.77,0,256.77,Activities & General Recreation,Miscellaneous retail
Buckinghamshire Council ,31.12.2023,11.12.2023,Children's Services,Education & Childrens Services - CS Dir,REES FOUNDATION,60,0,60,Leaving Care  - Financial Assistance,Charitable organisations
Buckinghamshire Council ,31.12.2023,11.12.2023,Resources,AH&R - Res Dir,AMZNMktplace,209.48,0,209.48,Awaiting Coding,Miscellaneous retail
Buckinghamshire Council ,31.12.2023,11.12.2023,Adults and Health,Health & Wellbeing - Adults & Health Dir,TESCO STORES 5135,239.88,0,239.88,General Provisions (Food),Grocery stores
Buckinghamshire Council ,31.12.2023,11.12.2023,Adults and Health,Health & Wellbeing - Adults & Health Dir,TESCO STORES 5135,-2,0,-2,General Provisions (Food),Grocery stores
Buckinghamshire Council ,31.12.2023,11.12.2023,"Planning, Growth & Sustainability",Planning & Regeneration - PGS,TRAINLINE,21.6,0,21.6,Staff Travelling Expenses,Passenger railways
Buckinghamshire Council ,31.12.2023,11.12.2023,"Planning, Growth & Sustainability",Planning & Regeneration - PGS,ARRIVA THE SHIRES LIMITED,2,0,2,Staff Travelling Expenses,"Buses, charter & tour"
Buckinghamshire Council ,31.12.2023,11.12.2023,"Planning, Growth & Sustainability",Planning & Regeneration - PGS,TFL TRAVEL CH,5.6,0,5.6,Staff Travelling Expenses,Local commuter transport
Buckinghamshire Council ,31.12.2023,11.12.2023,"Planning, Growth & Sustainability",Planning & Regeneration - PGS,TFL TRAVEL CH,2.8,0,2.8,Staff Travelling Expenses,Local commuter transport
Buckinghamshire Council ,31.12.2023,11.12.2023,Resources,AH&R - Res Dir,LINKEDIN ADS 9699281254,100.46,0,100.46,Permanent Recruitment Costs,Advertising services
Buckinghamshire Council ,31.12.2023,11.12.2023,Adults and Health,Health & Wellbeing - Adults & Health Dir,ASDA GROCERIES ONLINE,101.77,0,101.77,General Provisions (Food),Grocery stores
Buckinghamshire Council ,31.12.2023,11.12.2023,Adults and Health,Health & Wellbeing - Adults & Health Dir,ASDA GROCERIES ONLINE,-8,0,-8,General Provisions (Food),Grocery stores
Buckinghamshire Council ,31.12.2023,11.12.2023,Children's Services,Education & Childrens Services - CS Dir,FIRST BUS - WEB,15.6,0,15.6,Sec 20/31: Supp for Contact,"Buses, charter & tour"
Buckinghamshire Council ,31.12.2023,11.12.2023,Children's Services,Education & Childrens Services - CS Dir,TRAINLINE,23.59,0,23.59,Sec 20/31: Supp for Contact,Passenger railways
Buckinghamshire Council ,31.12.2023,11.12.2023,Communities,ommunities - Trading Accounts,DVLA VEHICLE TAX,320,0,320,Vehicle Taxation Costs,Tax payments
Buckinghamshire Council ,31.12.2023,11.12.2023,Communities,ommunities - Trading Accounts,DVLA VEHICLE TAX,320,0,320,Vehicle Taxation Costs,Tax payments
Buckinghamshire Council ,31.12.2023,11.12.2023,Communities,ommunities - Trading Accounts,DVLA VEHICLE TAX,320,0,320,Vehicle Taxation Costs,Tax payments
Buckinghamshire Council ,31.12.2023,11.12.2023,Communities,ommunities - Trading Accounts,DVLA VEHICLE TAX,320,0,320,Vehicle Taxation Costs,Tax payments
Buckinghamshire Council ,31.12.2023,11.12.2023,Communities,ommunities - Trading Accounts,DVLA VEHICLE TAX,320,0,320,Vehicle Taxation Costs,Tax payments
Buckinghamshire Council ,31.12.2023,11.12.2023,Communities,ommunities - Trading Accounts,DVLA VEHICLE TAX,320,0,320,Vehicle Taxation Costs,Tax payments
Buckinghamshire Council ,31.12.2023,11.12.2023,Communities,ommunities - Trading Accounts,DVLA VEHICLE TAX,320,0,320,Vehicle Taxation Costs,Tax payments
Buckinghamshire Council ,31.12.2023,11.12.2023,Communities,ommunities - Trading Accounts,DVLA VEHICLE TAX,320,0,320,Vehicle Taxation Costs,Tax payments
Buckinghamshire Council ,31.12.2023,11.12.2023,Resources,AH&R - Res Dir,BRENT COUNCIL,11,0,11,Miscellaneous (Other)  Expenses,Government services
Buckinghamshire Council ,31.12.2023,11.12.2023,Resources,AH&R - Res Dir,BRENT COUNCIL,11,0,11,Miscellaneous (Other)  Expenses,Government services
Buckinghamshire Council ,31.12.2023,11.12.2023,Communities,Culture & Leisure - Communities Dir,PAYPAL,"2,000.00",0,"2,000.00",Computer Support Services,"Programming, data processing & system design"
Buckinghamshire Council ,31.12.2023,11.12.2023,Deputy Chief Executive,AH&R- DCE Dir,PAYPAL,445.75,89.15,534.9,Miscellaneous (Other)  Expenses,Variety stores
Buckinghamshire Council ,31.12.2023,11.12.2023,Deputy Chief Executive,AH&R- DCE Dir,PAYPAL,0.05,0,0.05,Miscellaneous (Other)  Expenses,Variety stores
Buckinghamshire Council ,31.12.2023,11.12.2023,Deputy Chief Executive,AH&R- DCE Dir,PAYPAL,482.5,96.5,579,Miscellaneous (Other)  Expenses,Variety stores
Buckinghamshire Council ,31.12.2023,11.12.2023,"Planning, Growth & Sustainability",Planning & Regeneration - PGS,TFL TRAVEL CH,4.4,0,4.4,Staff Travelling Expenses,Local commuter transport
Buckinghamshire Council ,31.12.2023,11.12.2023,Resources,AH&R - Res Dir,Carpetright Limited,316.18,0,316.18,Awaiting Coding,Furniture & home furnishing
Buckinghamshire Council ,31.12.2023,10.12.2023,Children's Services,Education & Childrens Services - CS Dir,AMAZON PRIME,8.99,0,8.99,Miscellaneous (Other)  Expenses,Continuous subscriptions
Buckinghamshire Council ,31.12.2023,10.12.2023,Communities,Transport - Communities Dir,EURO CAR PARTS P,16.99,0,16.99,Vehicle Hire,Automotive parts & accessories
Buckinghamshire Council ,31.12.2023,10.12.2023,Communities,Climate Change & Environment - Community,PAYPAL,125,0,125,Advertising,Advertising services
Buckinghamshire Council ,31.12.2023,10.12.2023,Children's Services,Education & Childrens Services - CS Dir,IKEA LTD SHOP ONLINE,310,0,310,Leaving Care - Grants for Care Leavers,Furniture & home furnishing
Buckinghamshire Council ,31.12.2023,10.12.2023,"Planning, Growth & Sustainability",Climate Change & Environment - PGS,AMZNMKTPLACE,339.6,0,339.6,IT Equipment Purchase,Miscellaneous retail
Buckinghamshire Council ,31.12.2023,10.12.2023,"Planning, Growth & Sustainability",Climate Change & Environment - PGS,AMZNMKTPLACE,37.95,7.59,487.68,IT Equipment Purchase,Miscellaneous retail
Buckinghamshire Council ,31.12.2023,10.12.2023,"Planning, Growth & Sustainability",Climate Change & Environment - PGS,AMZNMKTPLACE,85.44,17.1,487.68,IT Equipment Purchase,Miscellaneous retail
Buckinghamshire Council ,31.12.2023,10.12.2023,"Planning, Growth & Sustainability",Climate Change & Environment - PGS,AMZNMKTPLACE,-339.6,0,-339.6,IT Equipment Purchase,Miscellaneous retail
Buckinghamshire Council ,31.12.2023,10.12.2023,"Planning, Growth & Sustainability",AH&R - PGS Dir,eBay O*19-10904-68469,8.83,0,8.83,Awaiting Coding,Department stores
Buckinghamshire Council ,31.12.2023,10.12.2023,Children's Services,Education & Childrens Services - CS Dir,AMZNMKTPLACE,18.3,3.66,21.96,Educational Equipment,Miscellaneous retail
Buckinghamshire Council ,31.12.2023,10.12.2023,Children's Services,Education & Childrens Services - CS Dir,AMZNMKTPLACE,16.65,3.33,19.98,Administrative Equipment & Tools,Miscellaneous retail
Buckinghamshire Council ,31.12.2023,10.12.2023,"Planning, Growth & Sustainability",Housing & Homelessness & Regulatory PGS,HPI INSTANT INK UK,4.49,0,4.49,Furniture,Electronics shops
Buckinghamshire Council ,31.12.2023,09.12.2023,"Planning, Growth & Sustainability",Climate Change & Environment - PGS,FACEBK WT6GBU3HB2,112.75,0,112.75,Advertising,Advertising services
Buckinghamshire Council ,31.12.2023,09.12.2023,Children's Services,Education & Childrens Services - CS Dir,SUMUP  *THE OASIS PARTNER,20,0,20,Educational Equipment,Charitable organisations
Buckinghamshire Council ,31.12.2023,09.12.2023,Children's Services,Education & Childrens Services - CS Dir,BAKER ROSS,155.05,31.01,186.06,Educational Equipment,Art & craft shops
Buckinghamshire Council ,31.12.2023,09.12.2023,Children's Services,Education & Childrens Services - CS Dir,MAILCHIMP,48.08,0,48.08,Computer Consumables,
Buckinghamshire Council ,31.12.2023,09.12.2023,Communities,artnerships - Communities,MAILCHIMP,25.34,0,25.34,Miscellaneous (Other)  Expenses,
Buckinghamshire Council ,31.12.2023,09.12.2023,Children's Services,Education & Childrens Services - CS Dir,TESCO PAY AT PUMP 3986,72.15,0,72.15,Petrol,Automated fuel dispensers
Buckinghamshire Council ,31.12.2023,09.12.2023,Communities,artnerships - Communities,THE FLYING CORK,238.9,0,238.9,Awaiting Coding,Off Licenses / alcohol sales
Buckinghamshire Council ,31.12.2023,09.12.2023,Deputy Chief Executive,AH&R- DCE Dir,OXFORD BUS COMPANY,1,0,1,Staff Travelling Expenses,"Buses, charter & tour"
Buckinghamshire Council ,31.12.2023,08.12.2023,Deputy Chief Executive,AH&R- DCE Dir,PAYPAL,901.65,180.33,"1,081.98",Miscellaneous (Other)  Expenses,Variety stores
Buckinghamshire Council ,31.12.2023,08.12.2023,Deputy Chief Executive,AH&R- DCE Dir,PAYPAL,0.02,0,0.02,Miscellaneous (Other)  Expenses,Variety stores
Buckinghamshire Council ,31.12.2023,08.12.2023,Deputy Chief Executive,AH&R- DCE Dir,PAYPAL,434.95,86.99,521.94,Miscellaneous (Other)  Expenses,Variety stores
Buckinghamshire Council ,31.12.2023,08.12.2023,Deputy Chief Executive,AH&R- DCE Dir,PAYPAL,0.01,0,0.01,Miscellaneous (Other)  Expenses,Variety stores
Buckinghamshire Council ,31.12.2023,08.12.2023,"Planning, Growth & Sustainability",Housing & Homelessness & Regulatory PGS,LAND REGISTRY ECOM CCC,3,0,3,Homelessness,Government services
Buckinghamshire Council ,31.12.2023,08.12.2023,Deputy Chief Executive,Communities - DCE,AO RETAIL LIMITED,357.5,71.5,429,Other Personal Needs,Household appliance stores
Buckinghamshire Council ,31.12.2023,08.12.2023,Deputy Chief Executive,Communities - DCE,AO RETAIL LIMITED,561.65,112.33,673.98,Other Personal Needs,Household appliance stores
Buckinghamshire Council ,31.12.2023,08.12.2023,Deputy Chief Executive,Communities - DCE,AO RETAIL LIMITED,0.02,0,0.02,Other Personal Needs,Household appliance stores
Buckinghamshire Council ,31.12.2023,08.12.2023,Deputy Chief Executive,Leader - DCE,TRAINLINE,24.09,0,24.09,Staff Travelling Expenses,Passenger railways
Buckinghamshire Council ,31.12.2023,08.12.2023,Deputy Chief Executive,Leader - DCE,TRAINLINE,24.09,0,24.09,Staff Travelling Expenses,Passenger railways
Buckinghamshire Council ,31.12.2023,08.12.2023,Deputy Chief Executive,Leader - DCE,TRAINLINE,-13.1,0,-13.1,Staff Travelling Expenses,Passenger railways
Buckinghamshire Council ,31.12.2023,08.12.2023,Children's Services,Education & Childrens Services - CS Dir,TRAINLINE,121.19,0,121.19,Sec 20/31: Transport,Passenger railways
Buckinghamshire Council ,31.12.2023,08.12.2023,Children's Services,Education & Childrens Services - CS Dir,CURRYS BUSINESS,445.1,89.02,534.12,Computer Consumables,Computer software stores
Buckinghamshire Council ,31.12.2023,08.12.2023,Children's Services,Education & Childrens Services - CS Dir,CURRYS BUSINESS,0.04,0,0.04,Computer Consumables,Computer software stores
Buckinghamshire Council ,31.12.2023,08.12.2023,Communities,Climate Change & Environment - Community,TFL TRAVEL CH,2.7,0,2.7,Staff Travelling Expenses,Local commuter transport
Buckinghamshire Council ,31.12.2023,08.12.2023,Communities,Climate Change & Environment - Community,TFL TRAVEL CH,9.1,0,9.1,Staff Travelling Expenses,Local commuter transport
Buckinghamshire Council ,31.12.2023,08.12.2023,"Planning, Growth & Sustainability",AH&R - PGS Dir,ASDA SUPERSTORE,15,0,15,Administrative Equipment & Tools,Grocery stores
Buckinghamshire Council ,31.12.2023,08.12.2023,Communities,Transport - Communities Dir,SPORTSBIKESHOP LTD,79.99,0,79.99,Protective Clothing & Uniforms,Sporting goods shops
Buckinghamshire Council ,31.12.2023,08.12.2023,"Planning, Growth & Sustainability",AH&R - PGS Dir,TESCO STORES 2020,5.8,0,5.8,Purchase.of Refreshments and Food,Grocery stores
Buckinghamshire Council ,31.12.2023,08.12.2023,"Planning, Growth & Sustainability",AH&R - PGS Dir,CJ'S LOCKSMITHS,38.9,0,38.9,Repair and Maintenance of Equipment,Misc. repair services
Buckinghamshire Council ,31.12.2023,08.12.2023,"Planning, Growth & Sustainability",AH&R - PGS Dir,AMZNMKTPLACE,107.96,0,107.96,Maintenance of Grounds,Miscellaneous retail
Buckinghamshire Council ,31.12.2023,08.12.2023,"Planning, Growth & Sustainability",Planning & Regeneration - PGS,AMZNMktplace,6.39,0,6.39,Awaiting Coding,Miscellaneous retail
Buckinghamshire Council ,31.12.2023,08.12.2023,"Planning, Growth & Sustainability",Planning & Regeneration - PGS,BPP PROFESSIONAL EDUCATIO,-573.6,0,-573.6,Awaiting Coding,Colleges & universities
Buckinghamshire Council ,31.12.2023,08.12.2023,Adults and Health,Health & Wellbeing - Adults & Health Dir,BKG*HOTEL AT BOOKING.C,490,0,490,Other Short Term Support,Travel agencies
Buckinghamshire Council ,31.12.2023,08.12.2023,Communities,Climate Change & Environment - Community,PAYPAL,125,0,125,Advertising,Advertising services
Buckinghamshire Council ,31.12.2023,08.12.2023,Communities,Climate Change & Environment - Community,FACEBK UFTL8YKCM2,33.63,0,33.63,Advertising,Advertising services
Buckinghamshire Council ,31.12.2023,08.12.2023,Deputy Chief Executive,AH&R- DCE Dir,SUMUP  *CABS4U,55,0,55,Staff Travelling Expenses,Taxicabs & limousines
Buckinghamshire Council ,31.12.2023,08.12.2023,Children's Services,Education & Childrens Services - CS Dir,SAINSBURYS SMKTS,93.5,0,93.5,Purchase.of Refreshments and Food,Grocery stores
Buckinghamshire Council ,31.12.2023,08.12.2023,Children's Services,Education & Childrens Services - CS Dir,MY.MORRISONS.COM,20,0,20,Purchase.of Refreshments and Food,Grocery stores
Buckinghamshire Council ,31.12.2023,08.12.2023,Children's Services,Education & Childrens Services - CS Dir,ASDA  STORES 4396,9.5,0,9.5,General Provisions (Food),Grocery stores
Buckinghamshire Council ,31.12.2023,08.12.2023,Children's Services,Education & Childrens Services - CS Dir,HOBBYCRAFT,4.15,0.83,4.98,Educational Equipment,Art & craft shops
Buckinghamshire Council ,31.12.2023,08.12.2023,Children's Services,Education & Childrens Services - CS Dir,HOBBYCRAFT,0.02,0,0.02,Educational Equipment,Art & craft shops
Buckinghamshire Council ,31.12.2023,08.12.2023,"Planning, Growth & Sustainability",AH&R - PGS Dir,FAST KEY SERVICES LIMITED,4.19,0.84,5.03,General Repairs & Maintenance,Misc business services
Buckinghamshire Council ,31.12.2023,08.12.2023,Resources,AH&R - Res Dir,AMZNMktplace,624.78,0,624.78,Awaiting Coding,Miscellaneous retail
Buckinghamshire Council ,31.12.2023,08.12.2023,Resources,AH&R - Res Dir,AMZNMktplace,30.89,0,30.89,Awaiting Coding,Miscellaneous retail
Buckinghamshire Council ,31.12.2023,08.12.2023,Resources,AH&R - Res Dir,pay.amazon.com,197.95,0,197.95,Awaiting Coding,Misc. home furnishing
Buckinghamshire Council ,31.12.2023,08.12.2023,Resources,AH&R - Res Dir,AMZNMktplace,16.99,0,16.99,Awaiting Coding,Miscellaneous retail
Buckinghamshire Council ,31.12.2023,08.12.2023,Resources,AH&R - Res Dir,ASDA GROCERIES ONLINE,34.9,0,34.9,Awaiting Coding,Grocery stores
Buckinghamshire Council ,31.12.2023,08.12.2023,"Planning, Growth & Sustainability",Housing & Homelessness & Regulatory PGS,SAFETY SIGNS 4 LESS,184.44,0,184.44,Health & Safety Supplies & Services,Misc commercial machines equipment
Buckinghamshire Council ,31.12.2023,08.12.2023,Resources,AH&R - Res Dir,FACEBK TY85MWXUH2,21.05,0,21.05,Permanent Recruitment Costs,Advertising services
Buckinghamshire Council ,31.12.2023,08.12.2023,Deputy Chief Executive,Leader - DCE,SN BRIGHTON SST,62,0,62,Staff Travelling Expenses,Passenger railways
Buckinghamshire Council ,31.12.2023,08.12.2023,Children's Services,Education & Childrens Services - CS Dir,MYMEMORY LTD,326.65,65.33,391.98,IT Equipment Purchase,Electronics shops
Buckinghamshire Council ,31.12.2023,08.12.2023,Children's Services,Education & Childrens Services - CS Dir,MYMEMORY LTD,1.01,0,1.01,IT Equipment Purchase,Electronics shops
Buckinghamshire Council ,31.12.2023,08.12.2023,Communities,Climate Change & Environment - Community,SP ZEROWASTEBAG UK,210.5,0,210.5,Waste Prevention costs,Misc business services
Buckinghamshire Council ,31.12.2023,07.12.2023,Deputy Chief Executive,AH&R- DCE Dir,AO RETAIL LIMITED,25,0,25,Miscellaneous (Other)  Expenses,Household appliance stores
Buckinghamshire Council ,31.12.2023,07.12.2023,"Planning, Growth & Sustainability",AH&R - PGS Dir,INSTIT OF OCCPTNL SAFE,201.6,0,201.6,"Workshop - Materials,Tools & Equipment",Membership organisations
Buckinghamshire Council ,31.12.2023,07.12.2023,"Planning, Growth & Sustainability",Housing & Homelessness & Regulatory PGS,SUMUP  *CABS4U,39.5,0,39.5,Miscellaneous (Other)  Expenses,Taxicabs & limousines
Buckinghamshire Council ,31.12.2023,07.12.2023,Children's Services,Education & Childrens Services - CS Dir,TRAVELODGE GB0000,54.04,0,54.04,Sec 20/31: Specialist Services,Travelodge
Buckinghamshire Council ,31.12.2023,07.12.2023,Children's Services,Education & Childrens Services - CS Dir,AMZNMktplace,60.85,0,60.85,Awaiting Coding,Miscellaneous retail
Buckinghamshire Council ,31.12.2023,07.12.2023,Deputy Chief Executive,Communities - DCE,WWW.ARGOS.CO.UK,259.95,51.99,311.94,Other Personal Needs,Department stores
Buckinghamshire Council ,31.12.2023,07.12.2023,Deputy Chief Executive,Communities - DCE,WWW.ARGOS.CO.UK,0.01,0,0.01,Other Personal Needs,Department stores
Buckinghamshire Council ,31.12.2023,07.12.2023,Deputy Chief Executive,Communities - DCE,AO RETAIL LIMITED,473.33,94.67,568,Other Personal Needs,Household appliance stores
Buckinghamshire Council ,31.12.2023,07.12.2023,Deputy Chief Executive,Communities - DCE,AO RETAIL LIMITED,355,71,426,Other Personal Needs,Household appliance stores
Buckinghamshire Council ,31.12.2023,07.12.2023,Children's Services,Education & Childrens Services - CS Dir,COSTCO WHOLESALE #117,147.58,0,147.58,General Provisions (Food),Buying & shopping services/clubs
Buckinghamshire Council ,31.12.2023,07.12.2023,Resources,AH&R - Res Dir,PREMIER INN,66.49,0,66.49,"Courses, Conference and Seminar Fees",Premier Inn
Buckinghamshire Council ,31.12.2023,07.12.2023,Deputy Chief Executive,Communities - DCE,WWW.ARGOS.CO.UK,105.79,21.16,126.95,Other Personal Needs,Department stores
Buckinghamshire Council ,31.12.2023,07.12.2023,"Planning, Growth & Sustainability",Planning & Regeneration - PGS,RICS SUBS UK CYBS,539,0,539,Professional Subscriptions re Employees,Membership organisations
Buckinghamshire Council ,31.12.2023,07.12.2023,"Planning, Growth & Sustainability",Housing & Homelessness & Regulatory PGS,DB MASTER LOCKSMITH LT,90,18,108,Burial Costs,Computer software stores
Buckinghamshire Council ,31.12.2023,07.12.2023,Deputy Chief Executive,AH&R- DCE Dir,EB *3PB BARRISTERS INA,144,0,144,"Courses, Conference and Seminar Fees",Misc business services
Buckinghamshire Council ,31.12.2023,07.12.2023,Deputy Chief Executive,AH&R- DCE Dir,SRA,100,0,100,Professional Subscriptions re Employees,Membership organisations
Buckinghamshire Council ,31.12.2023,07.12.2023,Adults and Health,Health & Wellbeing - Adults & Health Dir,NEW YORK DELI (AYLESBURY),54,0,54,Subsistence,Restaurants
Buckinghamshire Council ,31.12.2023,07.12.2023,"Planning, Growth & Sustainability",AH&R - PGS Dir,WWW.SCREWFIX.COM,41.98,0,41.98,General Repairs & Maintenance,Timber & building supplies
Buckinghamshire Council ,31.12.2023,07.12.2023,"Planning, Growth & Sustainability",AH&R - PGS Dir,HOBBYCRAFT TRADING LIMITE,17.2,0,17.2,General Repairs & Maintenance,Art & craft shops
Buckinghamshire Council ,31.12.2023,07.12.2023,"Planning, Growth & Sustainability",AH&R - PGS Dir,ZETTLE_*SHANTOCK NURSE,59.5,0,59.5,Maintenance of Grounds,Miscellaneous retail
Buckinghamshire Council ,31.12.2023,07.12.2023,"Planning, Growth & Sustainability",AH&R - PGS Dir,CHIPPERFIELD GARDEN CE,47.49,0,47.49,Maintenance of Grounds,Lawn & garden supply/nursery
Buckinghamshire Council ,31.12.2023,07.12.2023,"Planning, Growth & Sustainability",AH&R - PGS Dir,TOOLSTATION LTD,72.14,0,72.14,General Repairs & Maintenance,Timber & building supplies
Buckinghamshire Council ,31.12.2023,07.12.2023,Children's Services,Education & Childrens Services - CS Dir,AMZNMKTPLACE,25.95,5.19,31.14,Educational Equipment,Miscellaneous retail
Buckinghamshire Council ,31.12.2023,07.12.2023,Children's Services,Education & Childrens Services - CS Dir,AMZNMKTPLACE,19,0,19,Educational Equipment,Miscellaneous retail
Buckinghamshire Council ,31.12.2023,07.12.2023,"Planning, Growth & Sustainability",Planning & Regeneration - PGS,HSE - BSR,336,0,336,Reg & Exam Fees for External Courses,Government services
Buckinghamshire Council ,31.12.2023,07.12.2023,Children's Services,Education & Childrens Services - CS Dir,DISCLOSURE & BARRING,13,0,13,Other Employees Expenses,Government services
Buckinghamshire Council ,31.12.2023,07.12.2023,Communities,Climate Change & Environment - Community,TRAINLINE,-20.7,0,-20.7,Staff Travelling Expenses,Passenger railways
Buckinghamshire Council ,31.12.2023,07.12.2023,Children's Services,Education & Childrens Services - CS Dir,WM MORRISONS STORE,15.95,0,15.95,Furniture,Grocery stores
Buckinghamshire Council ,31.12.2023,07.12.2023,Children's Services,Education & Childrens Services - CS Dir,HOBBYCRAFT TRADING LIMITE,25,0,25,Educational Equipment,Art & craft shops
Buckinghamshire Council ,31.12.2023,07.12.2023,Children's Services,Education & Childrens Services - CS Dir,THE WORKS,6.67,1.33,8,Educational Equipment,Discount stores
Buckinghamshire Council ,31.12.2023,07.12.2023,Resources,AH&R - Res Dir,PRINTED.COM,19.19,0,19.19,Events Expenditure,Publishing & printing services
Buckinghamshire Council ,31.12.2023,07.12.2023,Resources,AH&R - Res Dir,AMZNMKTPLACE,56.81,0,56.81,Events Expenditure,Miscellaneous retail
Buckinghamshire Council ,31.12.2023,07.12.2023,Adults and Health,Health & Wellbeing - Adults & Health Dir,TESCO STORES 5927,6.5,0,6.5,Awaiting Coding,Grocery stores
Buckinghamshire Council ,31.12.2023,07.12.2023,Resources,AH&R - Res Dir,WWW.ARGOS.CO.UK,128.95,0,128.95,Awaiting Coding,Department stores
Buckinghamshire Council ,31.12.2023,07.12.2023,Resources,AH&R - Res Dir,Tapi Carpets,726.3,0,726.3,Awaiting Coding,Floor covering stores
Buckinghamshire Council ,31.12.2023,07.12.2023,"Planning, Growth & Sustainability",Housing & Homelessness & Regulatory PGS,WWW.HERTSMERE.GOV.UK,40,0,40,Course Fees & Post Entry Training,Government services
Buckinghamshire Council ,31.12.2023,07.12.2023,Resources,AH&R - Res Dir,LINKEDIN ADS 9150152603,31.27,0,31.27,Permanent Recruitment Costs,Advertising services
Buckinghamshire Council ,31.12.2023,07.12.2023,Adults and Health,Health & Wellbeing - Adults & Health Dir,TESCO STORES 4395,47.3,0,47.3,General Provisions (Food),Grocery stores
Buckinghamshire Council ,31.12.2023,07.12.2023,Communities,Transport - Communities Dir,KWIK FIT,381.35,0,381.35,Repair & Maint of Vehicles & Plant,Auto servicing
Buckinghamshire Council ,31.12.2023,07.12.2023,Children's Services,Education & Childrens Services - CS Dir,TESCO GIFT CARD,50,0,50,Sec 17: Financial Assistance One Off,Grocery stores
Buckinghamshire Council ,31.12.2023,07.12.2023,Deputy Chief Executive,AH&R- DCE Dir,PAYPAL,304.1,60.82,364.92,Miscellaneous (Other)  Expenses,Variety stores
Buckinghamshire Council ,31.12.2023,07.12.2023,Deputy Chief Executive,AH&R- DCE Dir,PAYPAL,0.03,0,0.03,Miscellaneous (Other)  Expenses,Variety stores
Buckinghamshire Council ,31.12.2023,07.12.2023,Deputy Chief Executive,AH&R- DCE Dir,PAYPAL,410.83,82.17,493,Miscellaneous (Other)  Expenses,Electronics shops
Buckinghamshire Council ,31.12.2023,07.12.2023,Children's Services,Education & Childrens Services - CS Dir,PARADIGM HOUSING GROUP,134,0,134,Leaving Care - Rent,Government services
Buckinghamshire Council ,31.12.2023,07.12.2023,Deputy Chief Executive,Communities - DCE,AO RETAIL LIMITED,606.66,121.34,728,Other Personal Needs,Household appliance stores
Buckinghamshire Council ,31.12.2023,06.12.2023,Children's Services,Education & Childrens Services - CS Dir,TRAVELODGE GB0000,71.89,0,71.89,Sec 20/31: Specialist Services,Travelodge
Buckinghamshire Council ,31.12.2023,06.12.2023,Children's Services,Education & Childrens Services - CS Dir,POST OFFICE COUNTER,10,0,10,General Postage,Postal services
Buckinghamshire Council ,31.12.2023,06.12.2023,Deputy Chief Executive,Communities - DCE,AO RETAIL LIMITED,485.83,97.17,583,Other Personal Needs,Household appliance stores
Buckinghamshire Council ,31.12.2023,06.12.2023,Deputy Chief Executive,Communities - DCE,WWW.ARGOS.CO.UK,147.45,29.49,176.94,Other Personal Needs,Department stores
Buckinghamshire Council ,31.12.2023,06.12.2023,Deputy Chief Executive,Communities - DCE,WWW.ARGOS.CO.UK,0.01,0,0.01,Other Personal Needs,Department stores
Buckinghamshire Council ,31.12.2023,06.12.2023,Children's Services,Education & Childrens Services - CS Dir,WWW.THERANGE.CO.UK,-434.97,0,-434.97,Leaving Care - Grants for Care Leavers,Misc. home furnishing
Buckinghamshire Council ,31.12.2023,06.12.2023,Children's Services,Education & Childrens Services - CS Dir,AMAZON.CO.UK,69.99,0,69.99,Other Equipment and Materials,Direct sales companies
Buckinghamshire Council ,31.12.2023,06.12.2023,Deputy Chief Executive,Communities - DCE,AO RETAIL LIMITED,203.33,40.67,244,Other Personal Needs,Household appliance stores
Buckinghamshire Council ,31.12.2023,06.12.2023,Deputy Chief Executive,Communities - DCE,AO RETAIL LIMITED,199.16,39.84,239,Other Personal Needs,Household appliance stores
Buckinghamshire Council ,31.12.2023,06.12.2023,Deputy Chief Executive,Communities - DCE,VERY,-110,0,-110,Stationery & Office Supplies,Catalogue sales
Buckinghamshire Council ,31.12.2023,06.12.2023,Deputy Chief Executive,Communities - DCE,VERY,-259,0,-259,Stationery & Office Supplies,Catalogue sales
Buckinghamshire Council ,31.12.2023,06.12.2023,Resources,AH&R - Res Dir,INTERFLORA BRITISH UNI,62,0,62,Seeds & Plants,Florists
Buckinghamshire Council ,31.12.2023,06.12.2023,Communities,Climate Change & Environment - Community,trainline,25.59,0,25.59,Staff Travelling Expenses,Passenger railways
Buckinghamshire Council ,31.12.2023,06.12.2023,Children's Services,Education & Childrens Services - CS Dir,TESCO STORES 2041,40,0,40,General Postage,Grocery stores
Buckinghamshire Council ,31.12.2023,06.12.2023,"Planning, Growth & Sustainability",AH&R - PGS Dir,AMZNMKTPLACE,10.99,0,10.99,Other Equipment and Materials,Miscellaneous retail
Buckinghamshire Council ,31.12.2023,06.12.2023,Children's Services,Education & Childrens Services - CS Dir,AMAZON.CO.UK,45.78,0,45.78,Consumable Supplies,Direct sales companies
Buckinghamshire Council ,31.12.2023,06.12.2023,Communities,Transport - Communities Dir,JMA UK,1,0,1,Area Teams and Materials,Miscellaneous retail
Buckinghamshire Council ,31.12.2023,06.12.2023,Communities,Transport - Communities Dir,JMA UK,271.88,0,271.88,Area Teams and Materials,Miscellaneous retail
Buckinghamshire Council ,31.12.2023,06.12.2023,Children's Services,Education & Childrens Services - CS Dir,AMZNMKTPLACE,23.99,0,23.99,Miscellaneous (Other)  Expenses,Miscellaneous retail
Buckinghamshire Council ,31.12.2023,06.12.2023,Children's Services,artnerships - Children's Services,TRAINLINE,52.49,0,52.49,"Courses, Conference and Seminar Fees",Passenger railways
Buckinghamshire Council ,31.12.2023,06.12.2023,Children's Services,artnerships - Children's Services,TRAINLINE,61.29,0,61.29,"Courses, Conference and Seminar Fees",Passenger railways
Buckinghamshire Council ,31.12.2023,06.12.2023,Children's Services,Education & Childrens Services - CS Dir,BUCKS GOAT CENTRE,13,0,13,Furniture,Aquariums
Buckinghamshire Council ,31.12.2023,06.12.2023,Children's Services,Education & Childrens Services - CS Dir,HOLIDAY INN EXPRESS,80.7,0,80.7,"Courses, Conference and Seminar Fees","Hotels, motels & resorts"
Buckinghamshire Council ,31.12.2023,06.12.2023,Children's Services,Education & Childrens Services - CS Dir,AMZNMKTPLACE,23.03,0,23.03,Support for Foster Carers,Miscellaneous retail
Buckinghamshire Council ,31.12.2023,06.12.2023,Resources,AH&R - Res Dir,PRINTED.COM,69.43,0,69.43,Events Expenditure,Publishing & printing services
Buckinghamshire Council ,31.12.2023,06.12.2023,Resources,AH&R - Res Dir,L&Q RENT PAYMENT,120.07,0,120.07,Awaiting Coding,Government services
Buckinghamshire Council ,31.12.2023,06.12.2023,Communities,ommunities - Trust Accounts,WEXHAM MOWER SVCS,106.92,0,106.92,Repair & Maint of Vehicles & Plant,Lawn & garden supply/nursery
Buckinghamshire Council ,31.12.2023,06.12.2023,Communities,ommunities - Trust Accounts,WICKES SLOUGH,65.25,0,65.25,Repair & Maint of Vehicles & Plant,Timber & building supplies
Buckinghamshire Council ,31.12.2023,06.12.2023,"Planning, Growth & Sustainability",Housing & Homelessness & Regulatory PGS,WWW.ARGOS.CO.UK,619.95,0,619.95,Miscellaneous (Other)  Expenses,Department stores
Buckinghamshire Council ,31.12.2023,06.12.2023,Resources,AH&R - Res Dir,VOUCHER EXPRESS,100,0,100,Miscellaneous (Other)  Expenses,Miscellaneous retail
Buckinghamshire Council ,31.12.2023,06.12.2023,Communities,Climate Change & Environment - Community,AXELOS,95.04,0,95.04,Project Work and Project Management Costs,Membership organisations
Buckinghamshire Council ,31.12.2023,06.12.2023,Resources,AH&R - Res Dir,AYLESBURY STATION T/O,20.2,0,20.2,Staff Travelling Expenses,Passenger railways
Buckinghamshire Council ,31.12.2023,06.12.2023,Children's Services,Education & Childrens Services - CS Dir,LIDL GB  HIGH WYCOMBE,3.15,0,3.15,Miscellaneous (Other)  Expenses,Grocery stores
Buckinghamshire Council ,31.12.2023,06.12.2023,Communities,Transport - Communities Dir,POST OFFICE COUNTER,13.75,0,13.75,Materials,Postal services
Buckinghamshire Council ,31.12.2023,06.12.2023,Children's Services,Education & Childrens Services - CS Dir,TRAINLINE,98.79,0,98.79,Sec 17: Transport,Passenger railways
Buckinghamshire Council ,31.12.2023,06.12.2023,Children's Services,Education & Childrens Services - CS Dir,TRAINLINE,35.19,0,35.19,Sec 17: Transport,Passenger railways
Buckinghamshire Council ,31.12.2023,06.12.2023,Communities,artnerships - Communities,CAR PARK CHARGES,2.6,0,2.6,Miscellaneous (Other)  Expenses,Car parking & garages
Buckinghamshire Council ,31.12.2023,06.12.2023,Communities,Climate Change & Environment - Community,PAYPAL,125,0,125,Advertising,Advertising services
Buckinghamshire Council ,31.12.2023,06.12.2023,Deputy Chief Executive,AH&R- DCE Dir,PAYPAL,337.45,67.49,404.94,Miscellaneous (Other)  Expenses,Variety stores
Buckinghamshire Council ,31.12.2023,06.12.2023,Deputy Chief Executive,AH&R- DCE Dir,PAYPAL,0.01,0,0.01,Miscellaneous (Other)  Expenses,Variety stores
Buckinghamshire Council ,31.12.2023,06.12.2023,Deputy Chief Executive,AH&R- DCE Dir,PAYPAL,329.15,65.83,394.98,Miscellaneous (Other)  Expenses,Variety stores
Buckinghamshire Council ,31.12.2023,06.12.2023,Deputy Chief Executive,AH&R- DCE Dir,PAYPAL,0.02,0,0.02,Miscellaneous (Other)  Expenses,Variety stores
Buckinghamshire Council ,31.12.2023,06.12.2023,Communities,Transport - Communities Dir,JMA UK,-1,0,-1,Area Teams and Materials,Miscellaneous retail
Buckinghamshire Council ,31.12.2023,05.12.2023,Children's Services,Education & Childrens Services - CS Dir,PREMIER INN,108,0,108,"Courses, Conference and Seminar Fees",Premier Inn
Buckinghamshire Council ,31.12.2023,05.12.2023,Children's Services,Education & Childrens Services - CS Dir,LYNKPAY* 001 TAXIS,68.25,0,68.25,Sec 20/31: Transport,
Buckinghamshire Council ,31.12.2023,05.12.2023,Children's Services,Education & Childrens Services - CS Dir,LYNKPAY* 001 TAXIS,68.25,0,68.25,Sec 20/31: Transport,
Buckinghamshire Council ,31.12.2023,05.12.2023,Children's Services,Education & Childrens Services - CS Dir,LYNKPAY* 001 TAXIS,68.25,0,68.25,Sec 20/31: Transport,
Buckinghamshire Council ,31.12.2023,05.12.2023,Children's Services,Education & Childrens Services - CS Dir,LYNKPAY* 001 TAXIS,68.25,0,68.25,Sec 20/31: Transport,
Buckinghamshire Council ,31.12.2023,05.12.2023,Children's Services,Education & Childrens Services - CS Dir,LYNKPAY* 001 TAXIS,68.25,0,68.25,Sec 20/31: Transport,
Buckinghamshire Council ,31.12.2023,05.12.2023,Children's Services,Education & Childrens Services - CS Dir,LYNKPAY* 001 TAXIS,68.25,0,68.25,Sec 20/31: Transport,
Buckinghamshire Council ,31.12.2023,05.12.2023,Children's Services,Education & Childrens Services - CS Dir,LYNKPAY* 001 TAXIS,68.25,0,68.25,Sec 20/31: Transport,
Buckinghamshire Council ,31.12.2023,05.12.2023,"Planning, Growth & Sustainability",Housing & Homelessness & Regulatory PGS,ARGOS  AYLESBURY GATEHOU,9,0,9,Homelessness,Discount stores
Buckinghamshire Council ,31.12.2023,05.12.2023,"Planning, Growth & Sustainability",Housing & Homelessness & Regulatory PGS,LAND REGISTRY ECOM CCC,3,0,3,Homelessness,Government services
Buckinghamshire Council ,31.12.2023,05.12.2023,Resources,AH&R - Res Dir,MARKS&SPENCER PLC,181.5,0,181.5,Equipment,Grocery stores
Buckinghamshire Council ,31.12.2023,05.12.2023,"Planning, Growth & Sustainability",Climate Change & Environment - PGS,ORLO (SOCIALSIGNIN),477,0,477,Computer Consumables,Computer software stores
Buckinghamshire Council ,31.12.2023,05.12.2023,Deputy Chief Executive,Communities - DCE,WWW.ARGOS.CO.UK,222.45,44.49,266.94,Other Personal Needs,Department stores
Buckinghamshire Council ,31.12.2023,05.12.2023,Deputy Chief Executive,Communities - DCE,WWW.ARGOS.CO.UK,0.01,0,0.01,Other Personal Needs,Department stores
Buckinghamshire Council ,31.12.2023,05.12.2023,Deputy Chief Executive,Communities - DCE,AO RETAIL LIMITED,282.5,56.5,339,Other Personal Needs,Household appliance stores
Buckinghamshire Council ,31.12.2023,05.12.2023,Deputy Chief Executive,Communities - DCE,AO RETAIL LIMITED,211.66,42.34,254,Other Personal Needs,Household appliance stores
Buckinghamshire Council ,31.12.2023,05.12.2023,Deputy Chief Executive,Communities - DCE,AO RETAIL LIMITED,831.66,166.34,998,Other Personal Needs,Household appliance stores
Buckinghamshire Council ,31.12.2023,05.12.2023,"Planning, Growth & Sustainability",Planning & Regeneration - PGS,PAYPAL,45,0,45,Professional Subscriptions re Employees,Charitable organisations
Buckinghamshire Council ,31.12.2023,05.12.2023,Children's Services,Education & Childrens Services - CS Dir,DIRECT CARS,70,0,70,Sec 20/31: Transport,Taxicabs & limousines
Buckinghamshire Council ,31.12.2023,05.12.2023,Children's Services,Education & Childrens Services - CS Dir,CURRYS BUSINESS,16.95,3.39,20.34,Computer Consumables,Computer software stores
Buckinghamshire Council ,31.12.2023,05.12.2023,Children's Services,Education & Childrens Services - CS Dir,CURRYS BUSINESS,0.02,0,0.02,Computer Consumables,Computer software stores
Buckinghamshire Council ,31.12.2023,05.12.2023,Children's Services,Education & Childrens Services - CS Dir,CURRYS BUSINESS,397.15,79.43,476.58,Computer Consumables,Computer software stores
Buckinghamshire Council ,31.12.2023,05.12.2023,Children's Services,Education & Childrens Services - CS Dir,CURRYS BUSINESS,"1,040.80",208.16,"1,248.96",Computer Consumables,Computer software stores
Buckinghamshire Council ,31.12.2023,05.12.2023,Children's Services,Education & Childrens Services - CS Dir,CURRYS BUSINESS,0.03,0,0.03,Computer Consumables,Computer software stores
Buckinghamshire Council ,31.12.2023,05.12.2023,Children's Services,Education & Childrens Services - CS Dir,CURRYS BUSINESS,707.5,141.5,849,Computer Consumables,Computer software stores
Buckinghamshire Council ,31.12.2023,05.12.2023,Children's Services,Education & Childrens Services - CS Dir,APPLE.COM/UK,470,0,470,Computer Consumables,Electronics shops
Buckinghamshire Council ,31.12.2023,05.12.2023,Children's Services,Education & Childrens Services - CS Dir,AMZNMKTPLACE,47.98,0,47.98,Computer Consumables,Miscellaneous retail
Buckinghamshire Council ,31.12.2023,05.12.2023,Children's Services,Education & Childrens Services - CS Dir,AMZNMKTPLACE,29.99,0,29.99,Computer Consumables,Miscellaneous retail
Buckinghamshire Council ,31.12.2023,05.12.2023,"Planning, Growth & Sustainability",AH&R - PGS Dir,SCREWFIX HIGH WYCOMBE CRE,91.97,0,91.97,General Repairs & Maintenance,Timber & building supplies
Buckinghamshire Council ,31.12.2023,05.12.2023,"Planning, Growth & Sustainability",AH&R - PGS Dir,ASDA SUPERSTORE,11.6,0,11.6,General Provisions (Food),Grocery stores
Buckinghamshire Council ,31.12.2023,05.12.2023,"Planning, Growth & Sustainability",AH&R - PGS Dir,TESCO STORES 2020,4.35,0,4.35,Purchase.of Refreshments and Food,Grocery stores
Buckinghamshire Council ,31.12.2023,05.12.2023,"Planning, Growth & Sustainability",AH&R - PGS Dir,B & Q 1305,55.25,0,55.25,General Repairs & Maintenance,Home supply warehouse stores
Buckinghamshire Council ,31.12.2023,05.12.2023,"Planning, Growth & Sustainability",AH&R - PGS Dir,EDMUNDSON ELECTRICAL,16.46,0,16.46,General Repairs & Maintenance,Electrical parts & equipment
Buckinghamshire Council ,31.12.2023,05.12.2023,Children's Services,Education & Childrens Services - CS Dir,AMZNMKTPLACE,26.99,0,26.99,Miscellaneous (Other)  Expenses,Miscellaneous retail
Buckinghamshire Council ,31.12.2023,05.12.2023,Children's Services,Education & Childrens Services - CS Dir,LIDL GB OAKFIELD ROAD,4.12,0,4.12,Furniture,Grocery stores
Buckinghamshire Council ,31.12.2023,05.12.2023,Adults and Health,Health & Wellbeing - Adults & Health Dir,BKG*HOTEL AT BOOKING.C,375.3,0,375.3,Other Short Term Support,Travel agencies
Buckinghamshire Council ,31.12.2023,05.12.2023,Communities,Culture & Leisure - Communities Dir,TIMPSON LTD,8.33,1.67,10,Administrative Equipment & Tools,Miscellaneous retail
Buckinghamshire Council ,31.12.2023,05.12.2023,Deputy Chief Executive,AH&R- DCE Dir,WWW.ANYVAN.COM,130,0,130,Equipment (including storage),"Haulage, removals & delivery"
Buckinghamshire Council ,31.12.2023,05.12.2023,Children's Services,Education & Childrens Services - CS Dir,WWW.ARGOS.CO.UK,271.95,0,271.95,Support for Foster Carers,Department stores
Buckinghamshire Council ,31.12.2023,05.12.2023,Children's Services,Education & Childrens Services - CS Dir,TESCO STORES 2041,8.74,0,8.74,Awaiting Coding,Grocery stores
Buckinghamshire Council ,31.12.2023,05.12.2023,Children's Services,Education & Childrens Services - CS Dir,BT BUSINESS BILL,52.46,0,52.46,Telephones,Phone services
Buckinghamshire Council ,31.12.2023,05.12.2023,Children's Services,Education & Childrens Services - CS Dir,WF* UK4178118144,238.98,0,238.98,Leaving Care - Grants for Care Leavers,Furniture & home furnishing
Buckinghamshire Council ,31.12.2023,05.12.2023,Children's Services,Education & Childrens Services - CS Dir,WWW.ARGOS.CO.UK,245.95,0,245.95,Leaving Care - Grants for Care Leavers,Department stores
Buckinghamshire Council ,31.12.2023,05.12.2023,"Planning, Growth & Sustainability",Housing & Homelessness & Regulatory PGS,MOL*FLAIR FURNITURE LTD,239.97,0,239.97,Miscellaneous (Other)  Expenses,Furniture & home furnishing
Buckinghamshire Council ,31.12.2023,05.12.2023,"Planning, Growth & Sustainability",Housing & Homelessness & Regulatory PGS,AMZNMKTPLACE,635.21,0,635.21,Miscellaneous (Other)  Expenses,Miscellaneous retail
Buckinghamshire Council ,31.12.2023,05.12.2023,Communities,Climate Change & Environment - Community,TRAINLINE,45.69,0,45.69,Staff Travelling Expenses,Passenger railways
Buckinghamshire Council ,31.12.2023,05.12.2023,Communities,Culture & Leisure - Communities Dir,TVLICENSING.CO.UK,159,0,159,Professional Services (non curriculum) - External,Consultants & public relation services
Buckinghamshire Council ,31.12.2023,05.12.2023,Deputy Chief Executive,AH&R- DCE Dir,PAYPAL,502.49,100.51,603,Miscellaneous (Other)  Expenses,Electronics shops
Buckinghamshire Council ,31.12.2023,05.12.2023,Deputy Chief Executive,AH&R- DCE Dir,PAYPAL,300.83,60.17,361,Miscellaneous (Other)  Expenses,Variety stores
Buckinghamshire Council ,31.12.2023,05.12.2023,Deputy Chief Executive,AH&R- DCE Dir,PAYPAL,330.79,66.16,396.95,Miscellaneous (Other)  Expenses,Variety stores
Buckinghamshire Council ,31.12.2023,05.12.2023,"Planning, Growth & Sustainability",AH&R - PGS Dir,AMAZON.CO.UK,11.98,0,11.98,Other Equipment and Materials,Direct sales companies
Buckinghamshire Council ,31.12.2023,04.12.2023,Communities,artnerships - Communities,CAR PARK CHARGES,2.1,0,2.1,Miscellaneous (Other)  Expenses,Car parking & garages
Buckinghamshire Council ,31.12.2023,04.12.2023,Deputy Chief Executive,Communities - DCE,PAYPAL,493.29,98.66,591.95,Other Personal Needs,Variety stores
Buckinghamshire Council ,31.12.2023,04.12.2023,Deputy Chief Executive,Communities - DCE,PAYPAL,105,21,126,Other Personal Needs,Variety stores
Buckinghamshire Council ,31.12.2023,04.12.2023,"Planning, Growth & Sustainability",Planning & Regeneration - PGS,HSE - BSR,336,0,336,Professional Subscriptions re Employees,Government services
Buckinghamshire Council ,31.12.2023,04.12.2023,Children's Services,Education & Childrens Services - CS Dir,LYNKPAY* 001 TAXIS,68.25,0,68.25,Sec 20/31: Transport,
Buckinghamshire Council ,31.12.2023,04.12.2023,Children's Services,Education & Childrens Services - CS Dir,LYNKPAY* 001 TAXIS,68.25,0,68.25,Sec 20/31: Transport,
Buckinghamshire Council ,31.12.2023,04.12.2023,Children's Services,Education & Childrens Services - CS Dir,THE OXFORDSHIRE TAXI COMP,130,0,130,Sec 20/31: Transport,Taxicabs & limousines
Buckinghamshire Council ,31.12.2023,04.12.2023,Children's Services,Education & Childrens Services - CS Dir,CABCARD SERVICES UK,550.3,0,550.3,Sec 20/31: Transport,Taxicabs & limousines
Buckinghamshire Council ,31.12.2023,04.12.2023,Children's Services,Education & Childrens Services - CS Dir,WWW.THERANGE.CO.UK,144.99,0,144.99,Leaving Care - Grants for Care Leavers,Misc. home furnishing
Buckinghamshire Council ,31.12.2023,04.12.2023,Children's Services,Education & Childrens Services - CS Dir,SP FURNITUREMAXI,651.18,0,651.18,Leaving Care - Grants for Care Leavers,Furniture & home furnishing
Buckinghamshire Council ,31.12.2023,04.12.2023,Children's Services,Education & Childrens Services - CS Dir,TESCO STORES 2041,176.92,0,176.92,General Provisions (Food),Grocery stores
Buckinghamshire Council ,31.12.2023,04.12.2023,Deputy Chief Executive,Communities - DCE,AO RETAIL LIMITED,357.5,71.5,429,Other Personal Needs,Household appliance stores
Buckinghamshire Council ,31.12.2023,04.12.2023,Deputy Chief Executive,Communities - DCE,AO RETAIL LIMITED,814.16,162.84,977,Other Personal Needs,Household appliance stores
Buckinghamshire Council ,31.12.2023,04.12.2023,Children's Services,Education & Childrens Services - CS Dir,AMAZON* 204-5005466-74,29.98,0,29.98,Computer Consumables,Misc. general merchandise
Buckinghamshire Council ,31.12.2023,04.12.2023,Adults and Health,Health & Wellbeing - Adults & Health Dir,AMAZON.CO.UK,16.65,3.33,19.98,Stationery & Office Supplies,Direct sales companies
Buckinghamshire Council ,31.12.2023,04.12.2023,Children's Services,Education & Childrens Services - CS Dir,HOO*HOOTSUITE INC,103.2,20.64,123.84,Marketing,Misc business services
Buckinghamshire Council ,31.12.2023,04.12.2023,"Planning, Growth & Sustainability",Planning & Regeneration - PGS,AMAZON* 204-6650317-73,52.51,0,52.51,Awaiting Coding,Misc. general merchandise
Buckinghamshire Council ,31.12.2023,04.12.2023,Communities,Climate Change & Environment - Community,TIMPSON LTD,65,0,65,Equipment,Miscellaneous retail
Buckinghamshire Council ,31.12.2023,04.12.2023,Communities,Transport - Communities Dir,DVLA OEPPWEBECOM,75,0,75,DVLA Enquiries,Government services
Buckinghamshire Council ,31.12.2023,04.12.2023,"Planning, Growth & Sustainability",AH&R - PGS Dir,AMZNMKTPLACE,12.97,0,12.97,Administrative Equipment & Tools,Miscellaneous retail
Buckinghamshire Council ,31.12.2023,04.12.2023,Deputy Chief Executive,AH&R- DCE Dir,SUMUP  *CABS4U,20,0,20,Other Personal Needs,Taxicabs & limousines
Buckinghamshire Council ,31.12.2023,04.12.2023,Children's Services,Education & Childrens Services - CS Dir,TESCO STORES 2041,15,0,15,Equipment for Training and Mats for Ins.,Grocery stores
Buckinghamshire Council ,31.12.2023,04.12.2023,Resources,AH&R - Res Dir,AMZNMktplace,392.99,0,392.99,Awaiting Coding,Miscellaneous retail
Buckinghamshire Council ,31.12.2023,04.12.2023,Resources,AH&R - Res Dir,BKG*HOTEL AT BOOKING.C,67.59,0,67.59,Staff Travelling Expenses,Travel agencies
Buckinghamshire Council ,31.12.2023,04.12.2023,Adults and Health,Health & Wellbeing - Adults & Health Dir,TESCO STORES 5135,203.67,0,203.67,General Provisions (Food),Grocery stores
Buckinghamshire Council ,31.12.2023,04.12.2023,"Planning, Growth & Sustainability",Housing & Homelessness & Regulatory PGS,AO RETAIL LIMITED,619,0,619,Miscellaneous (Other)  Expenses,Household appliance stores
Buckinghamshire Council ,31.12.2023,04.12.2023,"Planning, Growth & Sustainability",Planning & Regeneration - PGS,TFL TRAVEL CH,8.1,0,8.1,Staff Travelling Expenses,Local commuter transport
Buckinghamshire Council ,31.12.2023,04.12.2023,"Planning, Growth & Sustainability",Planning & Regeneration - PGS,UBR* PENDING.UBER.COM,8.94,0,8.94,Staff Travelling Expenses,Taxicabs & limousines
Buckinghamshire Council ,31.12.2023,04.12.2023,"Planning, Growth & Sustainability",Planning & Regeneration - PGS,COLYER GROUP LTD,-408.41,0,-408.41,Computer Consumables,Computer software stores
Buckinghamshire Council ,31.12.2023,04.12.2023,Adults and Health,Health & Wellbeing - Adults & Health Dir,ASDA GROCERIES ONLINE,77.17,0,77.17,General Provisions (Food),Grocery stores
Buckinghamshire Council ,31.12.2023,04.12.2023,Adults and Health,Health & Wellbeing - Adults & Health Dir,ASDA GROCERIES ONLINE,-0.25,0,-0.25,General Provisions (Food),Grocery stores
Buckinghamshire Council ,31.12.2023,04.12.2023,Children's Services,Education & Childrens Services - CS Dir,FIRST BUS - WEB,15.6,0,15.6,Sec 20/31: Supp for Contact,"Buses, charter & tour"
Buckinghamshire Council ,31.12.2023,04.12.2023,Children's Services,Education & Childrens Services - CS Dir,TRAINLINE,23.59,0,23.59,Sec 20/31: Supp for Contact,Passenger railways
Buckinghamshire Council ,31.12.2023,04.12.2023,Communities,Housing & Homelessness & Regulatory Comm,TESCO STORES 2020,14.02,0,14.02,Purchase.of Refreshments and Food,Grocery stores
Buckinghamshire Council ,31.12.2023,03.12.2023,Children's Services,Education & Childrens Services - CS Dir,AMAZON.CO.UK,109.99,0,109.99,Leaving Care - Grants for Care Leavers,Direct sales companies
Buckinghamshire Council ,31.12.2023,03.12.2023,Children's Services,Education & Childrens Services - CS Dir,AMZNMKTPLACE,4.99,0,4.99,Other Equipment and Materials,Miscellaneous retail
Buckinghamshire Council ,31.12.2023,03.12.2023,Children's Services,Education & Childrens Services - CS Dir,AMZNMKTPLACE,39.98,0,39.98,Other Equipment and Materials,Miscellaneous retail
Buckinghamshire Council ,31.12.2023,03.12.2023,Communities,Transport - Communities Dir,AMZNMKTPLACE,59.98,0,59.98,Equipment,Miscellaneous retail
Buckinghamshire Council ,31.12.2023,03.12.2023,Children's Services,Education & Childrens Services - CS Dir,WM MORRISONS STORE,10.62,0,10.62,Furniture,Grocery stores
Buckinghamshire Council ,31.12.2023,03.12.2023,Children's Services,Education & Childrens Services - CS Dir,WM MORRISONS STORE,10.2,0,10.2,Furniture,Grocery stores
Buckinghamshire Council ,31.12.2023,03.12.2023,Resources,AH&R - Res Dir,AWS EMEA,7.74,0,7.74,Subsistence,Misc business services
Buckinghamshire Council ,31.12.2023,03.12.2023,Children's Services,Education & Childrens Services - CS Dir,HOBBYCRAFT,35,7,42,Educational Equipment,Art & craft shops
Buckinghamshire Council ,31.12.2023,03.12.2023,"Planning, Growth & Sustainability",Planning & Regeneration - PGS,TRAINLINE.COM LTD,22.49,0,22.49,Staff Travelling Expenses,Passenger railways
Buckinghamshire Council ,31.12.2023,02.12.2023,Deputy Chief Executive,AH&R- DCE Dir,PAYPAL,-160,0,-160,Miscellaneous (Other)  Expenses,Variety stores
Buckinghamshire Council ,31.12.2023,02.12.2023,Communities,Climate Change & Environment - Community,THOMSON REUTERS UK LTD,96,0,96,Maintenance of Grounds,Professional services
Buckinghamshire Council ,31.12.2023,02.12.2023,Communities,Culture & Leisure - Communities Dir,EXPONDO GMBH,57.5,11.5,69,"Workshop - Materials,Tools & Equipment",Hardware stores
Buckinghamshire Council ,31.12.2023,02.12.2023,Children's Services,Education & Childrens Services - CS Dir,OPUZ AYLESBURY,25,0,25,Subsistence,Restaurants
Buckinghamshire Council ,31.12.2023,02.12.2023,Children's Services,Education & Childrens Services - CS Dir,AMZNMKTPLACE,19.97,0,19.97,General Provisions (Food),Miscellaneous retail
Buckinghamshire Council ,31.12.2023,01.12.2023,Children's Services,Education & Childrens Services - CS Dir,AMAZON.CO.UK,11.95,0,11.95,General Provisions (Food),Direct sales companies
Buckinghamshire Council ,31.12.2023,01.12.2023,"Planning, Growth & Sustainability",AH&R - PGS Dir,AMZNMKTPLACE,8.99,0,8.99,Administrative Equipment & Tools,Miscellaneous retail
Buckinghamshire Council ,31.12.2023,01.12.2023,"Planning, Growth & Sustainability",AH&R - PGS Dir,AMZNMKTPLACE,9.98,0,9.98,Administrative Equipment & Tools,Miscellaneous retail
Buckinghamshire Council ,31.12.2023,01.12.2023,Adults and Health,Health & Wellbeing - Adults & Health Dir,AMZNMKTPLACE,16.99,0,16.99,Miscellaneous (Other)  Expenses,Miscellaneous retail
Buckinghamshire Council ,31.12.2023,01.12.2023,Communities,Housing & Homelessness & Regulatory Comm,AMZNMKTPLACE,6.5,0,6.5,Furniture Fittings & IT,Miscellaneous retail
Buckinghamshire Council ,31.12.2023,01.12.2023,Deputy Chief Executive,AH&R- DCE Dir,PAYPAL,26.65,5.33,31.98,Miscellaneous (Other)  Expenses,Variety stores
Buckinghamshire Council ,31.12.2023,01.12.2023,Deputy Chief Executive,AH&R- DCE Dir,PAYPAL,0.02,0,0.02,Miscellaneous (Other)  Expenses,Variety stores
Buckinghamshire Council ,31.12.2023,01.12.2023,Deputy Chief Executive,AH&R- DCE Dir,PAYPAL,201.95,0,201.95,Miscellaneous (Other)  Expenses,Variety stores
Buckinghamshire Council ,31.12.2023,01.12.2023,Deputy Chief Executive,AH&R- DCE Dir,PAYPAL,7.5,1.5,9,Miscellaneous (Other)  Expenses,Variety stores
Buckinghamshire Council ,31.12.2023,01.12.2023,Children's Services,Education & Childrens Services - CS Dir,LYNKPAY* 001 TAXIS,68.25,0,68.25,Sec 20/31: Transport,
Buckinghamshire Council ,31.12.2023,01.12.2023,Children's Services,Education & Childrens Services - CS Dir,LYNKPAY* 001 TAXIS,68.25,0,68.25,Sec 20/31: Transport,
Buckinghamshire Council ,31.12.2023,01.12.2023,Children's Services,Education & Childrens Services - CS Dir,LYNKPAY* 001 TAXIS,68.25,0,68.25,Sec 20/31: Transport,
Buckinghamshire Council ,31.12.2023,01.12.2023,Children's Services,Education & Childrens Services - CS Dir,LYNKPAY* 001 TAXIS,68.25,0,68.25,Sec 20/31: Transport,
Buckinghamshire Council ,31.12.2023,01.12.2023,Resources,AH&R - Res Dir,LYNKPAY* 001 TAXIS,68.25,0,68.25,Sec 20/31: Transport,
Buckinghamshire Council ,31.12.2023,01.12.2023,"Planning, Growth & Sustainability",Housing & Homelessness & Regulatory PGS,LAND REGISTRY ECOM CCC,3,0,3,Homelessness,Government services
Buckinghamshire Council ,31.12.2023,01.12.2023,Children's Services,Education & Childrens Services - CS Dir,TICKETS 99756575,88.58,0,88.58,Awaiting Coding,Theatres and ticket agencies
Buckinghamshire Council ,31.12.2023,01.12.2023,Children's Services,Education & Childrens Services - CS Dir,TICKETS 99757252,33,0,33,Awaiting Coding,Theatres and ticket agencies
Buckinghamshire Council ,31.12.2023,01.12.2023,Children's Services,Education & Childrens Services - CS Dir,ABSOLUTELY KARTING (MAIDE,70,0,70,Awaiting Coding,"Member clubs, sport, recreation & golf"
Buckinghamshire Council ,31.12.2023,01.12.2023,Deputy Chief Executive,Communities - DCE,WWW.ARGOS.CO.UK,233.25,46.65,279.9,Other Personal Needs,Department stores
Buckinghamshire Council ,31.12.2023,01.12.2023,Deputy Chief Executive,Communities - DCE,WWW.ARGOS.CO.UK,0.05,0,0.05,Other Personal Needs,Department stores
Buckinghamshire Council ,31.12.2023,01.12.2023,Deputy Chief Executive,Communities - DCE,WWW.ARGOS.CO.UK,82.45,16.49,98.94,Other Personal Needs,Department stores
Buckinghamshire Council ,31.12.2023,01.12.2023,Deputy Chief Executive,Communities - DCE,WWW.ARGOS.CO.UK,0.01,0,0.01,Other Personal Needs,Department stores
Buckinghamshire Council ,31.12.2023,01.12.2023,Deputy Chief Executive,Communities - DCE,WWW.ARGOS.CO.UK,222.45,44.49,266.94,Other Personal Needs,Department stores
Buckinghamshire Council ,31.12.2023,01.12.2023,Deputy Chief Executive,Communities - DCE,WWW.ARGOS.CO.UK,0.01,0,0.01,Other Personal Needs,Department stores
Buckinghamshire Council ,31.12.2023,01.12.2023,Deputy Chief Executive,Communities - DCE,AO RETAIL LIMITED,676.66,135.34,812,Other Personal Needs,Household appliance stores
Buckinghamshire Council ,31.12.2023,01.12.2023,Deputy Chief Executive,Communities - DCE,AO RETAIL LIMITED,726.66,145.34,872,Other Personal Needs,Household appliance stores
Buckinghamshire Council ,31.12.2023,01.12.2023,Children's Services,Education & Childrens Services - CS Dir,AO RETAIL LIMITED,"1,319.00",0,"1,319.00",Leaving Care - Grants for Care Leavers,Household appliance stores
Buckinghamshire Council ,31.12.2023,01.12.2023,Children's Services,Education & Childrens Services - CS Dir,WWW.THERANGE.CO.UK,"1,093.63",0,"1,093.63",Leaving Care - Grants for Care Leavers,Misc. home furnishing
Buckinghamshire Council ,31.12.2023,01.12.2023,Children's Services,Education & Childrens Services - CS Dir,AMZNMKTPLACE,21.79,0,21.79,Educational Equipment,Miscellaneous retail
Buckinghamshire Council ,31.12.2023,01.12.2023,Children's Services,Education & Childrens Services - CS Dir,FENCABS,180,0,180,Sec 20/31: Transport,Taxicabs & limousines
Buckinghamshire Council ,31.12.2023,01.12.2023,Children's Services,Education & Childrens Services - CS Dir,BKG*HOTEL AT BOOKING.C,323,0,323,Sec 17: Accommodation,Travel agencies
Buckinghamshire Council ,31.12.2023,01.12.2023,Communities,Housing & Homelessness & Regulatory Comm,RS COMPONENTS,70.48,14.1,84.58,General Repairs & Maintenance,Electrical parts & equipment
Buckinghamshire Council ,31.12.2023,01.12.2023,Communities,artnerships - Communities,LEONARDO HTL MILTON KEYNE,88,0,88,Miscellaneous (Other)  Expenses,"Hotels, motels & resorts"
Buckinghamshire Council ,31.12.2023,01.12.2023,Communities,artnerships - Communities,LEONARDO HTL MILTON KEYNE,18.9,0,18.9,Miscellaneous (Other)  Expenses,"Hotels, motels & resorts"
Buckinghamshire Council ,31.12.2023,01.12.2023,Communities,artnerships - Communities,MILTON_KEYNES_PARKING,2,0,2,Miscellaneous (Other)  Expenses,Car parking & garages
Buckinghamshire Council ,31.12.2023,01.12.2023,"Planning, Growth & Sustainability",AH&R - PGS Dir,AMZNMKTPLACE,73.86,0,73.86,Administrative Equipment & Tools,Miscellaneous retail
Buckinghamshire Council ,31.12.2023,01.12.2023,Children's Services,artnerships - Children's Services,AMZNMKTPLACE,45.98,0,45.98,"Courses, Conference and Seminar Fees",Miscellaneous retail
Buckinghamshire Council ,31.12.2023,01.12.2023,Children's Services,Education & Childrens Services - CS Dir,B&M 426 - HS AYLESBURY,18,0,18,Furniture,Misc. general merchandise
Buckinghamshire Council ,31.12.2023,01.12.2023,Children's Services,Education & Childrens Services - CS Dir,WM MORRISONS STORE,5.09,0,5.09,Furniture,Grocery stores
Buckinghamshire Council ,31.12.2023,01.12.2023,Communities,Climate Change & Environment - Community,GOOGLE ADS2753042584,453.96,0,453.96,Advertising,Advertising services
Buckinghamshire Council ,31.12.2023,01.12.2023,Communities,Climate Change & Environment - Community,SPOTIFY,214,0,214,Advertising,
Buckinghamshire Council ,31.12.2023,01.12.2023,Communities,artnerships - Communities,TRAINLINE,137.79,0,137.79,Staff Travelling Expenses,Passenger railways
Buckinghamshire Council ,31.12.2023,01.12.2023,Deputy Chief Executive,AH&R- DCE Dir,SUMUP  *CABS4U,50,0,50,Staff Travelling Expenses,Taxicabs & limousines
Buckinghamshire Council ,31.12.2023,01.12.2023,Children's Services,Education & Childrens Services - CS Dir,ASDA  STORES 4396,8.05,0,8.05,General Provisions (Food),Grocery stores
Buckinghamshire Council ,31.12.2023,01.12.2023,"Planning, Growth & Sustainability",Transport - PGS Dir,AMAZON* 204-3914721-19,19.44,0,19.44,Travel Choice,Misc. general merchandise
Buckinghamshire Council ,31.12.2023,01.12.2023,Adults and Health,Health & Wellbeing - Adults & Health Dir,SPOTIFY,66.37,0,66.37,Advertising,
Buckinghamshire Council ,31.12.2023,01.12.2023,Resources,AH&R - Res Dir,TROPHYSTORE.CO.UK LIMITED,409.43,0,409.43,Events Expenditure,"Precious stones, metals & jewellery"
Buckinghamshire Council ,31.12.2023,01.12.2023,Resources,AH&R - Res Dir,TROPHYSTORE.CO.UK LIMITED,116.98,0,116.98,Events Expenditure,"Precious stones, metals & jewellery"
Buckinghamshire Council ,31.12.2023,01.12.2023,Resources,AH&R - Res Dir,CANVA* I03986-29034114,260,0,260,Purchase of Software,Photographic studios
Buckinghamshire Council ,31.12.2023,01.12.2023,Communities,ommunities - Trust Accounts,CHECKOUT SUPERSTORE LIMIT,16.45,3.29,16.45,Maintenance of Grounds,Grocery stores
Buckinghamshire Council ,31.12.2023,01.12.2023,Communities,ommunities - Trust Accounts,TRAVIS PERKINS,34.14,5.69,34.14,Maintenance of Grounds,Timber & building supplies
Buckinghamshire Council ,31.12.2023,01.12.2023,Communities,ommunities - Trust Accounts,TRAVIS PERKINS,260.74,43.46,260.74,Maintenance of Grounds,Timber & building supplies
Buckinghamshire Council ,31.12.2023,01.12.2023,"Planning, Growth & Sustainability",Planning & Regeneration - PGS,A.L.S PRESENTATION LTD,291.6,0,291.6,Printing & Stationery,Publishing & printing services
Buckinghamshire Council ,31.12.2023,01.12.2023,Resources,AH&R - Res Dir,LINKEDIN ADS 9675666194,77.03,0,77.03,Permanent Recruitment Costs,Advertising services
Buckinghamshire Council ,31.12.2023,01.12.2023,Children's Services,Education & Childrens Services - CS Dir,WARNER BROS. STUDIOS LEAV,60.45,0,60.45,Activities & General Recreation,Tourist attractions and exhibitions
Buckinghamshire Council ,31.12.2023,01.12.2023,Children's Services,Education & Childrens Services - CS Dir,GF* WWW.SNAPFITNESS.CO,30.99,0,30.99,YOS - Direct Work,Misc. personal services
Buckinghamshire Council ,31.12.2023,01.12.2023,Resources,AH&R - Res Dir,GOOGLE*CLOUD 76SKZQ,114.6,0,114.6,Computer Support Services,Computer network information services
Buckinghamshire Council ,31.12.2023,01.12.2023,Communities,ommunities - Trading Accounts,DVLA VEHICLE TAX,320,0,320,Vehicle Taxation Costs,Tax payments
Buckinghamshire Council ,31.12.2023,01.12.2023,Communities,ommunities - Trading Accounts,DVLA VEHICLE TAX,165,0,165,Vehicle Taxation Costs,Tax payments
Buckinghamshire Council ,31.12.2023,01.12.2023,Communities,ommunities - Trading Accounts,DVLA VEHICLE TAX,165,0,165,Vehicle Taxation Costs,Tax payments
Buckinghamshire Council ,31.12.2023,01.12.2023,Communities,ommunities - Trading Accounts,DVLA VEHICLE TAX,320,0,320,Vehicle Taxation Costs,Tax payments
Buckinghamshire Council ,31.12.2023,01.12.2023,Communities,ommunities - Trading Accounts,DVLA VEHICLE TAX,320,0,320,Vehicle Taxation Costs,Tax payments
Buckinghamshire Council ,31.12.2023,01.12.2023,Communities,ommunities - Trading Accounts,DVLA VEHICLE TAX,320,0,320,Vehicle Taxation Costs,Tax payments
Buckinghamshire Council ,31.12.2023,01.12.2023,Communities,ommunities - Trading Accounts,DVLA VEHICLE TAX,320,0,320,Vehicle Taxation Costs,Tax payments
Buckinghamshire Council ,31.12.2023,01.12.2023,Communities,ommunities - Trading Accounts,DVLA VEHICLE TAX,320,0,320,Vehicle Taxation Costs,Tax payments
Buckinghamshire Council ,31.12.2023,01.12.2023,Communities,ommunities - Trading Accounts,DVLA VEHICLE TAX,320,0,320,Vehicle Taxation Costs,Tax payments
Buckinghamshire Council ,31.12.2023,01.12.2023,Communities,ommunities - Trading Accounts,DVLA VEHICLE TAX,320,0,320,Vehicle Taxation Costs,Tax payments
Buckinghamshire Council ,31.12.2023,01.12.2023,Communities,ommunities - Trading Accounts,DVLA VEHICLE TAX,320,0,320,Vehicle Taxation Costs,Tax payments
Buckinghamshire Council ,31.12.2023,01.12.2023,Communities,ommunities - Trading Accounts,DVLA VEHICLE TAX,320,0,320,Vehicle Taxation Costs,Tax payments
Buckinghamshire Council ,31.12.2023,01.12.2023,Communities,ommunities - Trading Accounts,DVLA VEHICLE TAX,320,0,320,Vehicle Taxation Costs,Tax payments
Buckinghamshire Council ,31.12.2023,01.12.2023,Communities,ommunities - Trading Accounts,DVLA VEHICLE TAX,320,0,320,Vehicle Taxation Costs,Tax payments
Buckinghamshire Council ,31.12.2023,01.12.2023,Communities,ommunities - Trading Accounts,DVLA VEHICLE TAX,320,0,320,Vehicle Taxation Costs,Tax payments
Buckinghamshire Council ,31.12.2023,01.12.2023,Communities,ommunities - Trading Accounts,DVLA VEHICLE TAX,320,0,320,Vehicle Taxation Costs,Tax payments
Buckinghamshire Council ,31.12.2023,01.12.2023,Adults and Health,Health & Wellbeing - Adults & Health Dir,WM MORRISONS STORE,5.3,0,5.3,Awaiting Coding,Grocery stores
Buckinghamshire Council ,31.12.2023,01.12.2023,Communities,Culture & Leisure - Communities Dir,PAYPAL,32.2,0,32.2,Computer Support Services,Computer network information services
